{"text_format":"1","workbook":"xlsx","n_sheets":4,"sheets":["Debiteuren","Verkoop","Verkoopfactuur","data"],"not_rendered":{"charts":0,"images":1,"macros":1,"external_links":3,"defined_names":58,"comments":1,"pivot_tables":0},"unopened":[],"bounds":{"document_bytes":16777216,"sheet_cells":100000,"rows_first":2000,"rows_last":500,"rows_between":2000,"halvings":0,"cell_chars":16384,"cell_head_chars":4096},"cells_cut":0,"cells_raw":0,"read":"whole","date_system":"1900"}

{"sheet":"Debiteuren","index":0,"n_rows":501,"n_cols":8,"rows_kept":501,"cut":false,"hidden":false,"merged":[]}
["Nr","Naam","Voorletters","Adres","Postcode en Plaats","BTW nummer","Betaaltermijn (dagen)","Soort omzet"]
[1,"Contante Verkoop",null,null,null,null,30,"Omzet NL"]
[2,"Alberts","H.G.","Voorbeeldlaan 1","4895 KL aaaaaa","NL45467431431",30,"Omzet NL"]
[3,"Janssen","K.","Voorbeeldlaan 2","6191 MP aaaaaa","NL14564215627",30,"Omzet NL"]
[4,"de Bruyne","J.H.L.L","Voorbeeldlaan 3","4568 OP Antwerpen","BE52541265148",40,"Omzet EU"]
[5,"Sterling","W.T.P","Voorbeeldlaan 4","FQH4+M5 Manchester","UK78456932552",40,"Omzet EU"]
[6,"Lincon","F.T.P","Voorbeeldlaan 5","10012 New York",null,15,"Omzet buiten EU"]
[7]
[8]
[9]
[10]
[11]
[12]
[13]
[14]
[15]
[16]
[17]
[18]
[19]
[20]
[21]
[22]
[23]
[24]
[25]
[26]
[27]
[28]
[29]
[30]
[31]
[32]
[33]
[34]
[35]
[36]
[37]
[38]
[39]
[40]
[41]
[42]
[43]
[44]
[45]
[46]
[47]
[48]
[49]
[50]
[51]
[52]
[53]
[54]
[55]
[56]
[57]
[58]
[59]
[60]
[61]
[62]
[63]
[64]
[65]
[66]
[67]
[68]
[69]
[70]
[71]
[72]
[73]
[74]
[75]
[76]
[77]
[78]
[79]
[80]
[81]
[82]
[83]
[84]
[85]
[86]
[87]
[88]
[89]
[90]
[91]
[92]
[93]
[94]
[95]
[96]
[97]
[98]
[99]
[100]
[101]
[102]
[103]
[104]
[105]
[106]
[107]
[108]
[109]
[110]
[111]
[112]
[113]
[114]
[115]
[116]
[117]
[118]
[119]
[120]
[121]
[122]
[123]
[124]
[125]
[126]
[127]
[128]
[129]
[130]
[131]
[132]
[133]
[134]
[135]
[136]
[137]
[138]
[139]
[140]
[141]
[142]
[143]
[144]
[145]
[146]
[147]
[148]
[149]
[150]
[151]
[152]
[153]
[154]
[155]
[156]
[157]
[158]
[159]
[160]
[161]
[162]
[163]
[164]
[165]
[166]
[167]
[168]
[169]
[170]
[171]
[172]
[173]
[174]
[175]
[176]
[177]
[178]
[179]
[180]
[181]
[182]
[183]
[184]
[185]
[186]
[187]
[188]
[189]
[190]
[191]
[192]
[193]
[194]
[195]
[196]
[197]
[198]
[199]
[200]
[201]
[202]
[203]
[204]
[205]
[206]
[207]
[208]
[209]
[210]
[211]
[212]
[213]
[214]
[215]
[216]
[217]
[218]
[219]
[220]
[221]
[222]
[223]
[224]
[225]
[226]
[227]
[228]
[229]
[230]
[231]
[232]
[233]
[234]
[235]
[236]
[237]
[238]
[239]
[240]
[241]
[242]
[243]
[244]
[245]
[246]
[247]
[248]
[249]
[250]
[251]
[252]
[253]
[254]
[255]
[256]
[257]
[258]
[259]
[260]
[261]
[262]
[263]
[264]
[265]
[266]
[267]
[268]
[269]
[270]
[271]
[272]
[273]
[274]
[275]
[276]
[277]
[278]
[279]
[280]
[281]
[282]
[283]
[284]
[285]
[286]
[287]
[288]
[289]
[290]
[291]
[292]
[293]
[294]
[295]
[296]
[297]
[298]
[299]
[300]
[301]
[302]
[303]
[304]
[305]
[306]
[307]
[308]
[309]
[310]
[311]
[312]
[313]
[314]
[315]
[316]
[317]
[318]
[319]
[320]
[321]
[322]
[323]
[324]
[325]
[326]
[327]
[328]
[329]
[330]
[331]
[332]
[333]
[334]
[335]
[336]
[337]
[338]
[339]
[340]
[341]
[342]
[343]
[344]
[345]
[346]
[347]
[348]
[349]
[350]
[351]
[352]
[353]
[354]
[355]
[356]
[357]
[358]
[359]
[360]
[361]
[362]
[363]
[364]
[365]
[366]
[367]
[368]
[369]
[370]
[371]
[372]
[373]
[374]
[375]
[376]
[377]
[378]
[379]
[380]
[381]
[382]
[383]
[384]
[385]
[386]
[387]
[388]
[389]
[390]
[391]
[392]
[393]
[394]
[395]
[396]
[397]
[398]
[399]
[400]
[401]
[402]
[403]
[404]
[405]
[406]
[407]
[408]
[409]
[410]
[411]
[412]
[413]
[414]
[415]
[416]
[417]
[418]
[419]
[420]
[421]
[422]
[423]
[424]
[425]
[426]
[427]
[428]
[429]
[430]
[431]
[432]
[433]
[434]
[435]
[436]
[437]
[438]
[439]
[440]
[441]
[442]
[443]
[444]
[445]
[446]
[447]
[448]
[449]
[450]
[451]
[452]
[453]
[454]
[455]
[456]
[457]
[458]
[459]
[460]
[461]
[462]
[463]
[464]
[465]
[466]
[467]
[468]
[469]
[470]
[471]
[472]
[473]
[474]
[475]
[476]
[477]
[478]
[479]
[480]
[481]
[482]
[483]
[484]
[485]
[486]
[487]
[488]
[489]
[490]
[491]
[492]
[493]
[494]
[495]
[496]
[497]
[498]
[499]
[500]

{"sheet":"Verkoop","index":1,"n_rows":1482,"n_cols":20,"rows_kept":1482,"cut":false,"hidden":false,"merged":[[0,0,3,2]]}
["Verkoop",null,null,null,null,null,"BTW 0%",null,"BTW 9%",null,"BTW 21%","Totaal"]
[null,null,null,null,"Totale bedragen",{"$f":"IF(#REF!<#REF!,SUM(F7:F9974),\"\")","v":{"$error":"#REF!"}},{"$f":"IF(#REF!<#REF!,SUM(G7:G9974),\"\")","v":{"$error":"#REF!"}},{"$f":"IF(#REF!<#REF!,SUM(H7:H9974),\"\")","v":{"$error":"#REF!"}},{"$f":"IF(#REF!<#REF!,SUM(I7:I9974),\"\")","v":{"$error":"#REF!"}},{"$f":"IF(#REF!<#REF!,SUM(J7:J9974),\"\")","v":{"$error":"#REF!"}},{"$f":"IF(#REF!<#REF!,SUM(K7:K9974),\"\")","v":{"$error":"#REF!"}},{"$f":"IF(#REF!<#REF!,SUM(L7:L9974),\"\")","v":{"$error":"#REF!"}}]
[null,null,null,null,"Subtotalen",{"$f":"IF(#REF!<#REF!,SUBTOTAL(9,F7:F9974),\"\")","v":{"$error":"#REF!"}},{"$f":"IF(#REF!<#REF!,SUBTOTAL(9,G7:G9974),\"\")","v":{"$error":"#REF!"}},{"$f":"IF(#REF!<#REF!,SUBTOTAL(9,H7:H9974),\"\")","v":{"$error":"#REF!"}},{"$f":"IF(#REF!<#REF!,SUBTOTAL(9,I7:I9974),\"\")","v":{"$error":"#REF!"}},{"$f":"IF(#REF!<#REF!,SUBTOTAL(9,J7:J9974),\"\")","v":{"$error":"#REF!"}},{"$f":"IF(#REF!<#REF!,SUBTOTAL(9,K7:K9974),\"\")","v":{"$error":"#REF!"}},{"$f":"IF(#REF!<#REF!,SUBTOTAL(9,L7:L9974),\"\")","v":{"$error":"#REF!"}}]
[]
[null,null,null,null,{"$f":"SUM(E7:E9974)","v":19707},null,"BTW 0%",null,"BTW 9%",null,"BTW 21%"]
["Datum","Soort","Factuurnummer","Klantnaam","Totaal excl. BTW","Bedrag excl.","BTW","Bedrag excl.","BTW","Bedrag excl.","BTW","Totaal","Soort omzet","Vervaldatum","Betaald","Per bank / kas","Betaaldatum","Bijzonderheden"]
["2019-01-01","Factuur",2019001,"H.G. Alberts",{"$f":"F7+H7+J7","v":50},0,{"$f":"F7*0","v":0},50,{"$f":"H7*0.09","v":4.5},0,{"$f":"J7*0.21","v":0},{"$f":"SUM(F7:K7)","v":54.5},"Omzet NL","2019-01-31","Openstaand",null,null,null,{"$f":"CEILING(MONTH(A7)/3,1)","v":1},{"$f":"CEILING(MONTH(A7),1)","v":1}]
["2019-01-01","Factuur",2019002,"H.G. Alberts",181,0,0,75,{"$f":"H8*0.09","v":6.75},106,22.26,210.01,"Omzet NL","2019-01-31","Openstaand",null,null,null,1,1]
["2019-04-01","Factuur",2019003,"H.G. Alberts",181,0,0,75,6.75,106,22.26,210.01,"Omzet NL","2019-05-01","Openstaand",null,null,null,2,4]
["2019-07-01","Factuur",2019004,"H.G. Alberts",6100,0,0,500,45,5600,1176,7321,"Omzet NL","2019-07-31","Openstaand",null,null,null,{"$f":"#REF!","v":{"$error":"#REF!"}},7]
["2019-10-01","Factuur",2019005,"H.G. Alberts",5575,0,0,475,42.75,5100,1071,6688.75,"Omzet NL","2019-10-31","Openstaand",null,null,null,4,10]
["2019-10-01","Factuur",2019006,"J.H.L.L de Bruyne",5575,5575,0,0,0,0,0,5575,"Omzet EU","2019-11-10","Openstaand",null,null,null,4,10]
["2019-10-10","Factuur",2019007,"H.G. Alberts",675,0,0,300,27,375,78.75,{"$f":"SUM(F13:K13)","v":780.75},"Omzet NL","2019-01-31","Openstaand",null,null,null,4,10]
["2019-11-01","Factuur",2019008,"H.G. Alberts",700,0,0,300,27,400,84,811,"Omzet NL","2019-01-31","Openstaand",null,null,null,4,11]
["2018-12-17","Factuur",2019009,"H.G. Alberts",225,0,0,0,0,225,47.25,{"$f":"SUM(F15:K15)","v":272.25},"Omzet NL","2019-01-16","Openstaand",null,null,null,4,12]
["2019-01-01","Factuur",20190010,"H.G. Alberts",0,0,null,50,null,150,null,null,"Omzet NL","2019-01-31","Openstaand",null,null,null,1,1]
["2019-01-01","Factuur",20190011,"H.G. Alberts",222.5,20,0,60,5.3999999999999995,142.5,29.924999999999997,257.82499999999999,"Omzet NL","2019-01-31","Openstaand",null,null,null,1,1]
["2019-01-01","Factuur",20190012,"H.G. Alberts",222.5,20,0,60,5.3999999999999995,142.5,29.924999999999997,257.82499999999999,"Omzet NL","2019-01-31","Openstaand",null,null,null,1,1]
[null,null,null,null,0,null,0,null,0,null,0,0,null,null,null,null,null,null,1,1]
[null,null,null,null,0,null,0,null,0,null,0,0,null,null,null,null,null,null,1,1]
[null,null,null,null,0,null,0,null,0,null,0,0,null,null,null,null,null,null,1,1]
[null,null,null,null,0,null,0,null,0,null,0,0,null,null,null,null,null,null,1,1]
[null,null,null,null,0,null,0,null,0,null,0,0,null,null,null,null,null,null,1,1]
[null,null,null,null,0,null,0,null,0,null,0,0,null,null,null,null,null,null,1,1]
[null,null,null,null,0,null,0,null,0,null,0,0,null,null,null,null,null,null,1,1]
[null,null,null,null,0,null,0,null,0,null,0,0,null,null,null,null,null,null,1,1]
[null,null,null,null,0,null,0,null,0,null,0,0,null,null,null,null,null,null,1,1]
[null,null,null,null,0,null,0,null,0,null,0,0,null,null,null,null,null,null,1,1]
[null,null,null,null,0,null,0,null,0,null,0,{"$f":"SUM(F29:K29)","v":0},null,null,null,null,null,null,1,1]
[null,null,null,null,0,null,0,null,0,null,0,0,null,null,null,null,null,null,1,1]
[null,null,null,null,0,null,0,null,0,null,0,0,null,null,null,null,null,null,1,1]
[null,null,null,null,0,null,0,null,0,null,0,0,null,null,null,null,null,null,1,1]
[null,null,null,null,0,null,0,null,0,null,0,0,null,null,null,null,null,null,1,1]
[null,null,null,null,0,null,0,null,0,null,0,0,null,null,null,null,null,null,1,1]
[null,null,null,null,0,null,0,null,0,null,0,0,null,null,null,null,null,null,1,1]
[null,null,null,null,0,null,0,null,0,null,0,0,null,null,null,null,null,null,1,1]
[null,null,null,null,0,null,0,null,0,null,0,0,null,null,null,null,null,null,1,1]
[null,null,null,null,0,null,0,null,0,null,0,0,null,null,null,null,null,null,{"$f":"CEILING(MONTH(A38)/3,1)","v":1},{"$f":"CEILING(MONTH(A38),1)","v":1}]
[null,null,null,null,0,null,0,null,0,null,0,0,null,null,null,null,null,null,1,1]
[null,null,null,null,0,null,0,null,0,null,0,0,null,null,null,null,null,null,1,1]
[null,null,null,null,0,null,0,null,0,null,0,0,null,null,null,null,null,null,1,1]
[null,null,null,null,0,null,0,null,0,null,0,0,null,null,null,null,null,null,1,1]
[null,null,null,null,0,null,0,null,0,null,0,0,null,null,null,null,null,null,1,1]
[null,null,null,null,0,null,0,null,0,null,0,0,null,null,null,null,null,null,1,1]
[null,null,null,null,0,null,0,null,0,null,0,0,null,null,null,null,null,null,1,1]
[null,null,null,null,{"$f":"F46+H46+J46","v":0},null,0,null,0,null,0,0,null,null,null,null,null,null,1,1]
[null,null,null,null,0,null,{"$f":"F47*0","v":0},null,{"$f":"H47*0.09","v":0},null,{"$f":"J47*0.21","v":0},0,null,null,null,null,null,null,1,1]
[null,null,null,null,0,null,0,null,0,null,0,0,null,null,null,null,null,null,1,1]
[null,null,null,null,0,null,0,null,0,null,0,0,null,null,null,null,null,null,1,1]
[null,null,null,null,0,null,0,null,0,null,0,0,null,null,null,null,null,null,1,1]
[null,null,null,null,0,null,0,null,0,null,0,0,null,null,null,null,null,null,1,1]
[null,null,null,null,0,null,0,null,0,null,0,0,null,null,null,null,null,null,1,1]
[null,null,null,null,0,null,0,null,0,null,0,0,null,null,null,null,null,null,1,1]
[null,null,null,null,0,null,0,null,0,null,0,0,null,null,null,null,null,null,1,1]
[null,null,null,null,0,null,0,null,0,null,0,0,null,null,null,null,null,null,1,1]
[null,null,null,null,0,null,0,null,0,null,0,0,null,null,null,null,null,null,1,1]
[null,null,null,null,0,null,0,null,0,null,0,0,null,null,null,null,null,null,1,1]
[null,null,null,null,0,null,0,null,0,null,0,0,null,null,null,null,null,null,1,1]
[null,null,null,null,0,null,0,null,0,null,0,0,null,null,null,null,null,null,1,1]
[null,null,null,null,0,null,0,null,0,null,0,0,null,null,null,null,null,null,1,1]
[null,null,null,null,0,null,0,null,0,null,0,0,null,null,null,null,null,null,1,1]
[null,null,null,null,0,null,0,null,0,null,0,0,null,null,null,null,null,null,1,1]
[null,null,null,null,0,null,0,null,0,null,0,0,null,null,null,null,null,null,1,1]
[null,null,null,null,0,null,0,null,0,null,0,0,null,null,null,null,null,null,1,1]
[null,null,null,null,0,null,0,null,0,null,0,{"$f":"SUM(F65:K65)","v":0},null,null,null,null,null,null,1,1]
[null,null,null,null,0,null,0,null,0,null,0,0,null,null,null,null,null,null,1,1]
[null,null,null,null,0,null,0,null,0,null,0,0,null,null,null,null,null,null,1,1]
[null,null,null,null,0,null,0,null,0,null,0,0,null,null,null,null,null,null,1,1]
[null,null,null,null,0,null,0,null,0,null,0,0,null,null,null,null,null,null,1,1]
[null,null,null,null,0,null,0,null,0,null,0,0,null,null,null,null,null,null,1,1]
[null,null,null,null,0,null,0,null,0,null,0,0,null,null,null,null,null,null,1,1]
[null,null,null,null,0,null,0,null,0,null,0,0,null,null,null,null,null,null,1,1]
[null,null,null,null,0,null,0,null,0,null,0,0,null,null,null,null,null,null,1,1]
[null,null,null,null,0,null,0,null,0,null,0,0,null,null,null,null,null,null,1,1]
[null,null,null,null,0,null,0,null,0,null,0,0,null,null,null,null,null,null,1,1]
[null,null,null,null,0,null,0,null,0,null,0,0,null,null,null,null,null,null,1,1]
[null,null,null,null,0,null,0,null,0,null,0,0,null,null,null,null,null,null,1,1]
[null,null,null,null,0,null,0,null,0,null,0,0,null,null,null,null,null,null,1,1]
[null,null,null,null,0,null,0,null,0,null,0,0,null,null,null,null,null,null,1,1]
[null,null,null,null,0,null,0,null,0,null,0,0,null,null,null,null,null,null,1,1]
[null,null,null,null,0,null,0,null,0,null,0,0,null,null,null,null,null,null,1,1]
[null,null,null,null,0,null,0,null,0,null,0,0,null,null,null,null,null,null,1,1]
[null,null,null,null,0,null,0,null,0,null,0,0,null,null,null,null,null,null,1,1]
[null,null,null,null,0,null,0,null,0,null,0,0,null,null,null,null,null,null,1,1]
[null,null,null,null,0,null,0,null,0,null,0,0,null,null,null,null,null,null,1,1]
[null,null,null,null,0,null,0,null,0,null,0,0,null,null,null,null,null,null,1,1]
[null,null,null,null,0,null,0,null,0,null,0,0,null,null,null,null,null,null,1,1]
[null,null,null,null,0,null,0,null,0,null,0,0,null,null,null,null,null,null,1,1]
[null,null,null,null,0,null,0,null,0,null,0,0,null,null,null,null,null,null,1,1]
[null,null,null,null,0,null,0,null,0,null,0,0,null,null,null,null,null,null,1,1]
[null,null,null,null,0,null,0,null,0,null,0,0,null,null,null,null,null,null,1,1]
[null,null,null,null,0,null,0,null,0,null,0,0,null,null,null,null,null,null,1,1]
[null,null,null,null,0,null,0,null,0,null,0,0,null,null,null,null,null,null,1,1]
[null,null,null,null,0,null,0,null,0,null,0,0,null,null,null,null,null,null,1,1]
[null,null,null,null,0,null,0,null,0,null,0,0,null,null,null,null,null,null,1,1]
[null,null,null,null,0,null,0,null,0,null,0,0,null,null,null,null,null,null,1,1]
[null,null,null,null,0,null,0,null,0,null,0,0,null,null,null,null,null,null,1,1]
[null,null,null,null,0,null,0,null,0,null,0,0,null,null,null,null,null,null,1,1]
[null,null,null,null,0,null,0,null,0,null,0,0,null,null,null,null,null,null,1,1]
[null,null,null,null,0,null,0,null,0,null,0,0,null,null,null,null,null,null,1,1]
[null,null,null,null,0,null,0,null,0,null,0,0,null,null,null,null,null,null,1,1]
[null,null,null,null,0,null,0,null,0,null,0,0,null,null,null,null,null,null,{"$f":"CEILING(MONTH(A102)/3,1)","v":1},{"$f":"CEILING(MONTH(A102),1)","v":1}]
[null,null,null,null,0,null,0,null,0,null,0,0,null,null,null,null,null,null,1,1]
[null,null,null,null,0,null,0,null,0,null,0,0,null,null,null,null,null,null,1,1]
[null,null,null,null,0,null,0,null,0,null,0,0,null,null,null,null,null,null,1,1]
[null,null,null,null,0,null,0,null,0,null,0,0,null,null,null,null,null,null,1,1]
[null,null,null,null,0,null,0,null,0,null,0,0,null,null,null,null,null,null,1,1]
[null,null,null,null,0,null,0,null,0,null,0,0,null,null,null,null,null,null,1,1]
[null,null,null,null,0,null,0,null,0,null,0,0,null,null,null,null,null,null,1,1]
[null,null,null,null,{"$f":"F110+H110+J110","v":0},null,0,null,0,null,0,0,null,null,null,null,null,null,1,1]
[null,null,null,null,0,null,{"$f":"F111*0","v":0},null,{"$f":"H111*0.09","v":0},null,{"$f":"J111*0.21","v":0},0,null,null,null,null,null,null,1,1]
[null,null,null,null,0,null,0,null,0,null,0,0,null,null,null,null,null,null,1,1]
[null,null,null,null,0,null,0,null,0,null,0,0,null,null,null,null,null,null,1,1]
[null,null,null,null,0,null,0,null,0,null,0,0,null,null,null,null,null,null,1,1]
[null,null,null,null,0,null,0,null,0,null,0,0,null,null,null,null,null,null,1,1]
[null,null,null,null,0,null,0,null,0,null,0,0,null,null,null,null,null,null,1,1]
[null,null,null,null,0,null,0,null,0,null,0,0,null,null,null,null,null,null,1,1]
[null,null,null,null,0,null,0,null,0,null,0,0,null,null,null,null,null,null,1,1]
[null,null,null,null,0,null,0,null,0,null,0,0,null,null,null,null,null,null,1,1]
[null,null,null,null,0,null,0,null,0,null,0,0,null,null,null,null,null,null,1,1]
[null,null,null,null,0,null,0,null,0,null,0,0,null,null,null,null,null,null,1,1]
[null,null,null,null,0,null,0,null,0,null,0,0,null,null,null,null,null,null,1,1]
[null,null,null,null,0,null,0,null,0,null,0,0,null,null,null,null,null,null,1,1]
[null,null,null,null,0,null,0,null,0,null,0,0,null,null,null,null,null,null,1,1]
[null,null,null,null,0,null,0,null,0,null,0,0,null,null,null,null,null,null,1,1]
[null,null,null,null,0,null,0,null,0,null,0,0,null,null,null,null,null,null,1,1]
[null,null,null,null,0,null,0,null,0,null,0,0,null,null,null,null,null,null,1,1]
[null,null,null,null,0,null,0,null,0,null,0,0,null,null,null,null,null,null,1,1]
[null,null,null,null,0,null,0,null,0,null,0,{"$f":"SUM(F129:K129)","v":0},null,null,null,null,null,null,1,1]
[null,null,null,null,0,null,0,null,0,null,0,0,null,null,null,null,null,null,1,1]
[null,null,null,null,0,null,0,null,0,null,0,0,null,null,null,null,null,null,1,1]
[null,null,null,null,0,null,0,null,0,null,0,0,null,null,null,null,null,null,1,1]
[null,null,null,null,0,null,0,null,0,null,0,0,null,null,null,null,null,null,1,1]
[null,null,null,null,0,null,0,null,0,null,0,0,null,null,null,null,null,null,1,1]
[null,null,null,null,0,null,0,null,0,null,0,0,null,null,null,null,null,null,1,1]
[null,null,null,null,0,null,0,null,0,null,0,0,null,null,null,null,null,null,1,1]
[null,null,null,null,0,null,0,null,0,null,0,0,null,null,null,null,null,null,1,1]
[null,null,null,null,0,null,0,null,0,null,0,0,null,null,null,null,null,null,1,1]
[null,null,null,null,0,null,0,null,0,null,0,0,null,null,null,null,null,null,1,1]
[null,null,null,null,0,null,0,null,0,null,0,0,null,null,null,null,null,null,1,1]
[null,null,null,null,0,null,0,null,0,null,0,0,null,null,null,null,null,null,1,1]
[null,null,null,null,0,null,0,null,0,null,0,0,null,null,null,null,null,null,1,1]
[null,null,null,null,0,null,0,null,0,null,0,0,null,null,null,null,null,null,1,1]
[null,null,null,null,0,null,0,null,0,null,0,0,null,null,null,null,null,null,1,1]
[null,null,null,null,0,null,0,null,0,null,0,0,null,null,null,null,null,null,1,1]
[null,null,null,null,0,null,0,null,0,null,0,0,null,null,null,null,null,null,1,1]
[null,null,null,null,0,null,0,null,0,null,0,0,null,null,null,null,null,null,1,1]
[null,null,null,null,0,null,0,null,0,null,0,0,null,null,null,null,null,null,1,1]
[null,null,null,null,0,null,0,null,0,null,0,0,null,null,null,null,null,null,1,1]
[null,null,null,null,0,null,0,null,0,null,0,0,null,null,null,null,null,null,1,1]
[null,null,null,null,0,null,0,null,0,null,0,0,null,null,null,null,null,null,1,1]
[null,null,null,null,0,null,0,null,0,null,0,0,null,null,null,null,null,null,1,1]
[null,null,null,null,0,null,0,null,0,null,0,0,null,null,null,null,null,null,1,1]
[null,null,null,null,0,null,0,null,0,null,0,0,null,null,null,null,null,null,1,1]
[null,null,null,null,0,null,0,null,0,null,0,0,null,null,null,null,null,null,1,1]
[null,null,null,null,0,null,0,null,0,null,0,0,null,null,null,null,null,null,1,1]
[null,null,null,null,0,null,0,null,0,null,0,0,null,null,null,null,null,null,1,1]
[null,null,null,null,0,null,0,null,0,null,0,0,null,null,null,null,null,null,1,1]
[null,null,null,null,0,null,0,null,0,null,0,0,null,null,null,null,null,null,1,1]
[null,null,null,null,0,null,0,null,0,null,0,0,null,null,null,null,null,null,1,1]
[null,null,null,null,0,null,0,null,0,null,0,0,null,null,null,null,null,null,1,1]
[null,null,null,null,0,null,0,null,0,null,0,0,null,null,null,null,null,null,1,1]
[null,null,null,null,0,null,0,null,0,null,0,0,null,null,null,null,null,null,1,1]
[null,null,null,null,0,null,0,null,0,null,0,0,null,null,null,null,null,null,1,1]
[null,null,null,null,0,null,0,null,0,null,0,0,null,null,null,null,null,null,1,1]
[null,null,null,null,0,null,0,null,0,null,0,0,null,null,null,null,null,null,{"$f":"CEILING(MONTH(A166)/3,1)","v":1},{"$f":"CEILING(MONTH(A166),1)","v":1}]
[null,null,null,null,0,null,0,null,0,null,0,0,null,null,null,null,null,null,1,1]
[null,null,null,null,0,null,0,null,0,null,0,0,null,null,null,null,null,null,1,1]
[null,null,null,null,0,null,0,null,0,null,0,0,null,null,null,null,null,null,1,1]
[null,null,null,null,0,null,0,null,0,null,0,0,null,null,null,null,null,null,1,1]
[null,null,null,null,0,null,0,null,0,null,0,0,null,null,null,null,null,null,1,1]
[null,null,null,null,0,null,0,null,0,null,0,0,null,null,null,null,null,null,1,1]
[null,null,null,null,0,null,0,null,0,null,0,0,null,null,null,null,null,null,1,1]
[null,null,null,null,{"$f":"F174+H174+J174","v":0},null,0,null,0,null,0,0,null,null,null,null,null,null,1,1]
[null,null,null,null,0,null,{"$f":"F175*0","v":0},null,{"$f":"H175*0.09","v":0},null,{"$f":"J175*0.21","v":0},0,null,null,null,null,null,null,1,1]
[null,null,null,null,0,null,0,null,0,null,0,0,null,null,null,null,null,null,1,1]
[null,null,null,null,0,null,0,null,0,null,0,0,null,null,null,null,null,null,1,1]
[null,null,null,null,0,null,0,null,0,null,0,0,null,null,null,null,null,null,1,1]
[null,null,null,null,0,null,0,null,0,null,0,0,null,null,null,null,null,null,1,1]
[null,null,null,null,0,null,0,null,0,null,0,0,null,null,null,null,null,null,1,1]
[null,null,null,null,0,null,0,null,0,null,0,0,null,null,null,null,null,null,1,1]
[null,null,null,null,0,null,0,null,0,null,0,0,null,null,null,null,null,null,1,1]
[null,null,null,null,0,null,0,null,0,null,0,0,null,null,null,null,null,null,1,1]
[null,null,null,null,0,null,0,null,0,null,0,0,null,null,null,null,null,null,1,1]
[null,null,null,null,0,null,0,null,0,null,0,0,null,null,null,null,null,null,1,1]
[null,null,null,null,0,null,0,null,0,null,0,0,null,null,null,null,null,null,1,1]
[null,null,null,null,0,null,0,null,0,null,0,0,null,null,null,null,null,null,1,1]
[null,null,null,null,0,null,0,null,0,null,0,0,null,null,null,null,null,null,1,1]
[null,null,null,null,0,null,0,null,0,null,0,0,null,null,null,null,null,null,1,1]
[null,null,null,null,0,null,0,null,0,null,0,0,null,null,null,null,null,null,1,1]
[null,null,null,null,0,null,0,null,0,null,0,0,null,null,null,null,null,null,1,1]
[null,null,null,null,0,null,0,null,0,null,0,0,null,null,null,null,null,null,1,1]
[null,null,null,null,0,null,0,null,0,null,0,{"$f":"SUM(F193:K193)","v":0},null,null,null,null,null,null,1,1]
[null,null,null,null,0,null,0,null,0,null,0,0,null,null,null,null,null,null,1,1]
[null,null,null,null,0,null,0,null,0,null,0,0,null,null,null,null,null,null,1,1]
[null,null,null,null,0,null,0,null,0,null,0,0,null,null,null,null,null,null,1,1]
[null,null,null,null,0,null,0,null,0,null,0,0,null,null,null,null,null,null,1,1]
[null,null,null,null,0,null,0,null,0,null,0,0,null,null,null,null,null,null,1,1]
[null,null,null,null,0,null,0,null,0,null,0,0,null,null,null,null,null,null,1,1]
[null,null,null,null,0,null,0,null,0,null,0,0,null,null,null,null,null,null,1,1]
[null,null,null,null,0,null,0,null,0,null,0,0,null,null,null,null,null,null,1,1]
[null,null,null,null,0,null,0,null,0,null,0,0,null,null,null,null,null,null,1,1]
[null,null,null,null,0,null,0,null,0,null,0,0,null,null,null,null,null,null,1,1]
[null,null,null,null,0,null,0,null,0,null,0,0,null,null,null,null,null,null,1,1]
[null,null,null,null,0,null,0,null,0,null,0,0,null,null,null,null,null,null,1,1]
[null,null,null,null,0,null,0,null,0,null,0,0,null,null,null,null,null,null,1,1]
[null,null,null,null,0,null,0,null,0,null,0,0,null,null,null,null,null,null,1,1]
[null,null,null,null,0,null,0,null,0,null,0,0,null,null,null,null,null,null,1,1]
[null,null,null,null,0,null,0,null,0,null,0,0,null,null,null,null,null,null,1,1]
[null,null,null,null,0,null,0,null,0,null,0,0,null,null,null,null,null,null,1,1]
[null,null,null,null,0,null,0,null,0,null,0,0,null,null,null,null,null,null,1,1]
[null,null,null,null,0,null,0,null,0,null,0,0,null,null,null,null,null,null,1,1]
[null,null,null,null,0,null,0,null,0,null,0,0,null,null,null,null,null,null,1,1]
[null,null,null,null,0,null,0,null,0,null,0,0,null,null,null,null,null,null,1,1]
[null,null,null,null,0,null,0,null,0,null,0,0,null,null,null,null,null,null,1,1]
[null,null,null,null,0,null,0,null,0,null,0,0,null,null,null,null,null,null,1,1]
[null,null,null,null,0,null,0,null,0,null,0,0,null,null,null,null,null,null,1,1]
[null,null,null,null,0,null,0,null,0,null,0,0,null,null,null,null,null,null,1,1]
[null,null,null,null,0,null,0,null,0,null,0,0,null,null,null,null,null,null,1,1]
[null,null,null,null,0,null,0,null,0,null,0,0,null,null,null,null,null,null,1,1]
[null,null,null,null,0,null,0,null,0,null,0,0,null,null,null,null,null,null,1,1]
[null,null,null,null,0,null,0,null,0,null,0,0,null,null,null,null,null,null,1,1]
[null,null,null,null,0,null,0,null,0,null,0,0,null,null,null,null,null,null,1,1]
[null,null,null,null,0,null,0,null,0,null,0,0,null,null,null,null,null,null,1,1]
[null,null,null,null,0,null,0,null,0,null,0,0,null,null,null,null,null,null,1,1]
[null,null,null,null,0,null,0,null,0,null,0,0,null,null,null,null,null,null,1,1]
[null,null,null,null,0,null,0,null,0,null,0,0,null,null,null,null,null,null,1,1]
[null,null,null,null,0,null,0,null,0,null,0,0,null,null,null,null,null,null,1,1]
[null,null,null,null,0,null,0,null,0,null,0,0,null,null,null,null,null,null,1,1]
[null,null,null,null,0,null,0,null,0,null,0,0,null,null,null,null,null,null,{"$f":"CEILING(MONTH(A230)/3,1)","v":1},{"$f":"CEILING(MONTH(A230),1)","v":1}]
[null,null,null,null,0,null,0,null,0,null,0,0,null,null,null,null,null,null,1,1]
[null,null,null,null,0,null,0,null,0,null,0,0,null,null,null,null,null,null,1,1]
[null,null,null,null,0,null,0,null,0,null,0,0,null,null,null,null,null,null,1,1]
[null,null,null,null,0,null,0,null,0,null,0,0,null,null,null,null,null,null,1,1]
[null,null,null,null,0,null,0,null,0,null,0,0,null,null,null,null,null,null,1,1]
[null,null,null,null,0,null,0,null,0,null,0,0,null,null,null,null,null,null,1,1]
[null,null,null,null,0,null,0,null,0,null,0,0,null,null,null,null,null,null,1,1]
[null,null,null,null,{"$f":"F238+H238+J238","v":0},null,0,null,0,null,0,0,null,null,null,null,null,null,1,1]
[null,null,null,null,0,null,{"$f":"F239*0","v":0},null,{"$f":"H239*0.09","v":0},null,{"$f":"J239*0.21","v":0},0,null,null,null,null,null,null,1,1]
[null,null,null,null,0,null,0,null,0,null,0,0,null,null,null,null,null,null,1,1]
[null,null,null,null,0,null,0,null,0,null,0,0,null,null,null,null,null,null,1,1]
[null,null,null,null,0,null,0,null,0,null,0,0,null,null,null,null,null,null,1,1]
[null,null,null,null,0,null,0,null,0,null,0,0,null,null,null,null,null,null,1,1]
[null,null,null,null,0,null,0,null,0,null,0,0,null,null,null,null,null,null,1,1]
[null,null,null,null,0,null,0,null,0,null,0,0,null,null,null,null,null,null,1,1]
[null,null,null,null,0,null,0,null,0,null,0,0,null,null,null,null,null,null,1,1]
[null,null,null,null,0,null,0,null,0,null,0,0,null,null,null,null,null,null,1,1]
[null,null,null,null,0,null,0,null,0,null,0,0,null,null,null,null,null,null,1,1]
[null,null,null,null,0,null,0,null,0,null,0,0,null,null,null,null,null,null,1,1]
[null,null,null,null,0,null,0,null,0,null,0,0,null,null,null,null,null,null,1,1]
[null,null,null,null,0,null,0,null,0,null,0,0,null,null,null,null,null,null,1,1]
[null,null,null,null,0,null,0,null,0,null,0,0,null,null,null,null,null,null,1,1]
[null,null,null,null,0,null,0,null,0,null,0,0,null,null,null,null,null,null,1,1]
[null,null,null,null,0,null,0,null,0,null,0,0,null,null,null,null,null,null,1,1]
[null,null,null,null,0,null,0,null,0,null,0,0,null,null,null,null,null,null,1,1]
[null,null,null,null,0,null,0,null,0,null,0,0,null,null,null,null,null,null,1,1]
[null,null,null,null,0,null,0,null,0,null,0,{"$f":"SUM(F257:K257)","v":0},null,null,null,null,null,null,1,1]
[null,null,null,null,0,null,0,null,0,null,0,0,null,null,null,null,null,null,1,1]
[null,null,null,null,0,null,0,null,0,null,0,0,null,null,null,null,null,null,1,1]
[null,null,null,null,0,null,0,null,0,null,0,0,null,null,null,null,null,null,1,1]
[null,null,null,null,0,null,0,null,0,null,0,0,null,null,null,null,null,null,1,1]
[null,null,null,null,0,null,0,null,0,null,0,0,null,null,null,null,null,null,1,1]
[null,null,null,null,0,null,0,null,0,null,0,0,null,null,null,null,null,null,1,1]
[null,null,null,null,0,null,0,null,0,null,0,0,null,null,null,null,null,null,1,1]
[null,null,null,null,0,null,0,null,0,null,0,0,null,null,null,null,null,null,1,1]
[null,null,null,null,0,null,0,null,0,null,0,0,null,null,null,null,null,null,1,1]
[null,null,null,null,0,null,0,null,0,null,0,0,null,null,null,null,null,null,1,1]
[null,null,null,null,0,null,0,null,0,null,0,0,null,null,null,null,null,null,1,1]
[null,null,null,null,0,null,0,null,0,null,0,0,null,null,null,null,null,null,1,1]
[null,null,null,null,0,null,0,null,0,null,0,0,null,null,null,null,null,null,1,1]
[null,null,null,null,0,null,0,null,0,null,0,0,null,null,null,null,null,null,1,1]
[null,null,null,null,0,null,0,null,0,null,0,0,null,null,null,null,null,null,1,1]
[null,null,null,null,0,null,0,null,0,null,0,0,null,null,null,null,null,null,1,1]
[null,null,null,null,0,null,0,null,0,null,0,0,null,null,null,null,null,null,1,1]
[null,null,null,null,0,null,0,null,0,null,0,0,null,null,null,null,null,null,1,1]
[null,null,null,null,0,null,0,null,0,null,0,0,null,null,null,null,null,null,1,1]
[null,null,null,null,0,null,0,null,0,null,0,0,null,null,null,null,null,null,1,1]
[null,null,null,null,0,null,0,null,0,null,0,0,null,null,null,null,null,null,1,1]
[null,null,null,null,0,null,0,null,0,null,0,0,null,null,null,null,null,null,1,1]
[null,null,null,null,0,null,0,null,0,null,0,0,null,null,null,null,null,null,1,1]
[null,null,null,null,0,null,0,null,0,null,0,0,null,null,null,null,null,null,1,1]
[null,null,null,null,0,null,0,null,0,null,0,0,null,null,null,null,null,null,1,1]
[null,null,null,null,0,null,0,null,0,null,0,0,null,null,null,null,null,null,1,1]
[null,null,null,null,0,null,0,null,0,null,0,0,null,null,null,null,null,null,1,1]
[null,null,null,null,0,null,0,null,0,null,0,0,null,null,null,null,null,null,1,1]
[null,null,null,null,0,null,0,null,0,null,0,0,null,null,null,null,null,null,1,1]
[null,null,null,null,0,null,0,null,0,null,0,0,null,null,null,null,null,null,1,1]
[null,null,null,null,0,null,0,null,0,null,0,0,null,null,null,null,null,null,1,1]
[null,null,null,null,0,null,0,null,0,null,0,0,null,null,null,null,null,null,1,1]
[null,null,null,null,0,null,0,null,0,null,0,0,null,null,null,null,null,null,1,1]
[null,null,null,null,0,null,0,null,0,null,0,0,null,null,null,null,null,null,1,1]
[null,null,null,null,0,null,0,null,0,null,0,0,null,null,null,null,null,null,1,1]
[null,null,null,null,0,null,0,null,0,null,0,0,null,null,null,null,null,null,1,1]
[null,null,null,null,0,null,0,null,0,null,0,0,null,null,null,null,null,null,{"$f":"CEILING(MONTH(A294)/3,1)","v":1},{"$f":"CEILING(MONTH(A294),1)","v":1}]
[null,null,null,null,0,null,0,null,0,null,0,0,null,null,null,null,null,null,1,1]
[null,null,null,null,0,null,0,null,0,null,0,0,null,null,null,null,null,null,1,1]
[null,null,null,null,0,null,0,null,0,null,0,0,null,null,null,null,null,null,1,1]
[null,null,null,null,0,null,0,null,0,null,0,0,null,null,null,null,null,null,1,1]
[null,null,null,null,0,null,0,null,0,null,0,0,null,null,null,null,null,null,1,1]
[null,null,null,null,0,null,0,null,0,null,0,0,null,null,null,null,null,null,1,1]
[null,null,null,null,0,null,0,null,0,null,0,0,null,null,null,null,null,null,1,1]
[null,null,null,null,{"$f":"F302+H302+J302","v":0},null,0,null,0,null,0,0,null,null,null,null,null,null,1,1]
[null,null,null,null,0,null,{"$f":"F303*0","v":0},null,{"$f":"H303*0.09","v":0},null,{"$f":"J303*0.21","v":0},0,null,null,null,null,null,null,1,1]
[null,null,null,null,0,null,0,null,0,null,0,0,null,null,null,null,null,null,1,1]
[null,null,null,null,0,null,0,null,0,null,0,0,null,null,null,null,null,null,1,1]
[null,null,null,null,0,null,0,null,0,null,0,0,null,null,null,null,null,null,1,1]
[null,null,null,null,0,null,0,null,0,null,0,0,null,null,null,null,null,null,1,1]
[null,null,null,null,0,null,0,null,0,null,0,0,null,null,null,null,null,null,1,1]
[null,null,null,null,0,null,0,null,0,null,0,0,null,null,null,null,null,null,1,1]
[null,null,null,null,0,null,0,null,0,null,0,0,null,null,null,null,null,null,1,1]
[null,null,null,null,0,null,0,null,0,null,0,0,null,null,null,null,null,null,1,1]
[null,null,null,null,0,null,0,null,0,null,0,0,null,null,null,null,null,null,1,1]
[null,null,null,null,0,null,0,null,0,null,0,0,null,null,null,null,null,null,1,1]
[null,null,null,null,0,null,0,null,0,null,0,0,null,null,null,null,null,null,1,1]
[null,null,null,null,0,null,0,null,0,null,0,0,null,null,null,null,null,null,1,1]
[null,null,null,null,0,null,0,null,0,null,0,0,null,null,null,null,null,null,1,1]
[null,null,null,null,0,null,0,null,0,null,0,0,null,null,null,null,null,null,1,1]
[null,null,null,null,0,null,0,null,0,null,0,0,null,null,null,null,null,null,1,1]
[null,null,null,null,0,null,0,null,0,null,0,0,null,null,null,null,null,null,1,1]
[null,null,null,null,0,null,0,null,0,null,0,0,null,null,null,null,null,null,1,1]
[null,null,null,null,0,null,0,null,0,null,0,{"$f":"SUM(F321:K321)","v":0},null,null,null,null,null,null,1,1]
[null,null,null,null,0,null,0,null,0,null,0,0,null,null,null,null,null,null,1,1]
[null,null,null,null,0,null,0,null,0,null,0,0,null,null,null,null,null,null,1,1]
[null,null,null,null,0,null,0,null,0,null,0,0,null,null,null,null,null,null,1,1]
[null,null,null,null,0,null,0,null,0,null,0,0,null,null,null,null,null,null,1,1]
[null,null,null,null,0,null,0,null,0,null,0,0,null,null,null,null,null,null,1,1]
[null,null,null,null,0,null,0,null,0,null,0,0,null,null,null,null,null,null,1,1]
[null,null,null,null,0,null,0,null,0,null,0,0,null,null,null,null,null,null,1,1]
[null,null,null,null,0,null,0,null,0,null,0,0,null,null,null,null,null,null,1,1]
[null,null,null,null,0,null,0,null,0,null,0,0,null,null,null,null,null,null,1,1]
[null,null,null,null,0,null,0,null,0,null,0,0,null,null,null,null,null,null,1,1]
[null,null,null,null,0,null,0,null,0,null,0,0,null,null,null,null,null,null,1,1]
[null,null,null,null,0,null,0,null,0,null,0,0,null,null,null,null,null,null,1,1]
[null,null,null,null,0,null,0,null,0,null,0,0,null,null,null,null,null,null,1,1]
[null,null,null,null,0,null,0,null,0,null,0,0,null,null,null,null,null,null,1,1]
[null,null,null,null,0,null,0,null,0,null,0,0,null,null,null,null,null,null,1,1]
[null,null,null,null,0,null,0,null,0,null,0,0,null,null,null,null,null,null,1,1]
[null,null,null,null,0,null,0,null,0,null,0,0,null,null,null,null,null,null,1,1]
[null,null,null,null,0,null,0,null,0,null,0,0,null,null,null,null,null,null,1,1]
[null,null,null,null,0,null,0,null,0,null,0,0,null,null,null,null,null,null,1,1]
[null,null,null,null,0,null,0,null,0,null,0,0,null,null,null,null,null,null,1,1]
[null,null,null,null,0,null,0,null,0,null,0,0,null,null,null,null,null,null,1,1]
[null,null,null,null,0,null,0,null,0,null,0,0,null,null,null,null,null,null,1,1]
[null,null,null,null,0,null,0,null,0,null,0,0,null,null,null,null,null,null,1,1]
[null,null,null,null,0,null,0,null,0,null,0,0,null,null,null,null,null,null,1,1]
[null,null,null,null,0,null,0,null,0,null,0,0,null,null,null,null,null,null,1,1]
[null,null,null,null,0,null,0,null,0,null,0,0,null,null,null,null,null,null,1,1]
[null,null,null,null,0,null,0,null,0,null,0,0,null,null,null,null,null,null,1,1]
[null,null,null,null,0,null,0,null,0,null,0,0,null,null,null,null,null,null,1,1]
[null,null,null,null,0,null,0,null,0,null,0,0,null,null,null,null,null,null,1,1]
[null,null,null,null,0,null,0,null,0,null,0,0,null,null,null,null,null,null,1,1]
[null,null,null,null,0,null,0,null,0,null,0,0,null,null,null,null,null,null,1,1]
[null,null,null,null,0,null,0,null,0,null,0,0,null,null,null,null,null,null,1,1]
[null,null,null,null,0,null,0,null,0,null,0,0,null,null,null,null,null,null,1,1]
[null,null,null,null,0,null,0,null,0,null,0,0,null,null,null,null,null,null,1,1]
[null,null,null,null,0,null,0,null,0,null,0,0,null,null,null,null,null,null,1,1]
[null,null,null,null,0,null,0,null,0,null,0,0,null,null,null,null,null,null,1,1]
[null,null,null,null,0,null,0,null,0,null,0,0,null,null,null,null,null,null,{"$f":"CEILING(MONTH(A358)/3,1)","v":1},{"$f":"CEILING(MONTH(A358),1)","v":1}]
[null,null,null,null,0,null,0,null,0,null,0,0,null,null,null,null,null,null,1,1]
[null,null,null,null,0,null,0,null,0,null,0,0,null,null,null,null,null,null,1,1]
[null,null,null,null,0,null,0,null,0,null,0,0,null,null,null,null,null,null,1,1]
[null,null,null,null,0,null,0,null,0,null,0,0,null,null,null,null,null,null,1,1]
[null,null,null,null,0,null,0,null,0,null,0,0,null,null,null,null,null,null,1,1]
[null,null,null,null,0,null,0,null,0,null,0,0,null,null,null,null,null,null,1,1]
[null,null,null,null,0,null,0,null,0,null,0,0,null,null,null,null,null,null,1,1]
[null,null,null,null,{"$f":"F366+H366+J366","v":0},null,0,null,0,null,0,0,null,null,null,null,null,null,1,1]
[null,null,null,null,0,null,{"$f":"F367*0","v":0},null,{"$f":"H367*0.09","v":0},null,{"$f":"J367*0.21","v":0},0,null,null,null,null,null,null,1,1]
[null,null,null,null,0,null,0,null,0,null,0,0,null,null,null,null,null,null,1,1]
[null,null,null,null,0,null,0,null,0,null,0,0,null,null,null,null,null,null,1,1]
[null,null,null,null,0,null,0,null,0,null,0,0,null,null,null,null,null,null,1,1]
[null,null,null,null,0,null,0,null,0,null,0,0,null,null,null,null,null,null,1,1]
[null,null,null,null,0,null,0,null,0,null,0,0,null,null,null,null,null,null,1,1]
[null,null,null,null,0,null,0,null,0,null,0,0,null,null,null,null,null,null,1,1]
[null,null,null,null,0,null,0,null,0,null,0,0,null,null,null,null,null,null,1,1]
[null,null,null,null,0,null,0,null,0,null,0,0,null,null,null,null,null,null,1,1]
[null,null,null,null,0,null,0,null,0,null,0,0,null,null,null,null,null,null,1,1]
[null,null,null,null,0,null,0,null,0,null,0,0,null,null,null,null,null,null,1,1]
[null,null,null,null,0,null,0,null,0,null,0,0,null,null,null,null,null,null,1,1]
[null,null,null,null,0,null,0,null,0,null,0,0,null,null,null,null,null,null,1,1]
[null,null,null,null,0,null,0,null,0,null,0,0,null,null,null,null,null,null,1,1]
[null,null,null,null,0,null,0,null,0,null,0,0,null,null,null,null,null,null,1,1]
[null,null,null,null,0,null,0,null,0,null,0,0,null,null,null,null,null,null,1,1]
[null,null,null,null,0,null,0,null,0,null,0,0,null,null,null,null,null,null,1,1]
[null,null,null,null,0,null,0,null,0,null,0,0,null,null,null,null,null,null,1,1]
[null,null,null,null,0,null,0,null,0,null,0,{"$f":"SUM(F385:K385)","v":0},null,null,null,null,null,null,1,1]
[null,null,null,null,0,null,0,null,0,null,0,0,null,null,null,null,null,null,1,1]
[null,null,null,null,0,null,0,null,0,null,0,0,null,null,null,null,null,null,1,1]
[null,null,null,null,0,null,0,null,0,null,0,0,null,null,null,null,null,null,1,1]
[null,null,null,null,0,null,0,null,0,null,0,0,null,null,null,null,null,null,1,1]
[null,null,null,null,0,null,0,null,0,null,0,0,null,null,null,null,null,null,1,1]
[null,null,null,null,0,null,0,null,0,null,0,0,null,null,null,null,null,null,1,1]
[null,null,null,null,0,null,0,null,0,null,0,0,null,null,null,null,null,null,1,1]
[null,null,null,null,0,null,0,null,0,null,0,0,null,null,null,null,null,null,1,1]
[null,null,null,null,0,null,0,null,0,null,0,0,null,null,null,null,null,null,1,1]
[null,null,null,null,0,null,0,null,0,null,0,0,null,null,null,null,null,null,1,1]
[null,null,null,null,0,null,0,null,0,null,0,0,null,null,null,null,null,null,1,1]
[null,null,null,null,0,null,0,null,0,null,0,0,null,null,null,null,null,null,1,1]
[null,null,null,null,0,null,0,null,0,null,0,0,null,null,null,null,null,null,1,1]
[null,null,null,null,0,null,0,null,0,null,0,0,null,null,null,null,null,null,1,1]
[null,null,null,null,0,null,0,null,0,null,0,0,null,null,null,null,null,null,1,1]
[null,null,null,null,0,null,0,null,0,null,0,0,null,null,null,null,null,null,1,1]
[null,null,null,null,0,null,0,null,0,null,0,0,null,null,null,null,null,null,1,1]
[null,null,null,null,0,null,0,null,0,null,0,0,null,null,null,null,null,null,1,1]
[null,null,null,null,0,null,0,null,0,null,0,0,null,null,null,null,null,null,1,1]
[null,null,null,null,0,null,0,null,0,null,0,0,null,null,null,null,null,null,1,1]
[null,null,null,null,0,null,0,null,0,null,0,0,null,null,null,null,null,null,1,1]
[null,null,null,null,0,null,0,null,0,null,0,0,null,null,null,null,null,null,1,1]
[null,null,null,null,0,null,0,null,0,null,0,0,null,null,null,null,null,null,1,1]
[null,null,null,null,0,null,0,null,0,null,0,0,null,null,null,null,null,null,1,1]
[null,null,null,null,0,null,0,null,0,null,0,0,null,null,null,null,null,null,1,1]
[null,null,null,null,0,null,0,null,0,null,0,0,null,null,null,null,null,null,1,1]
[null,null,null,null,0,null,0,null,0,null,0,0,null,null,null,null,null,null,1,1]
[null,null,null,null,0,null,0,null,0,null,0,0,null,null,null,null,null,null,1,1]
[null,null,null,null,0,null,0,null,0,null,0,0,null,null,null,null,null,null,1,1]
[null,null,null,null,0,null,0,null,0,null,0,0,null,null,null,null,null,null,1,1]
[null,null,null,null,0,null,0,null,0,null,0,0,null,null,null,null,null,null,1,1]
[null,null,null,null,0,null,0,null,0,null,0,0,null,null,null,null,null,null,1,1]
[null,null,null,null,0,null,0,null,0,null,0,0,null,null,null,null,null,null,1,1]
[null,null,null,null,0,null,0,null,0,null,0,0,null,null,null,null,null,null,1,1]
[null,null,null,null,0,null,0,null,0,null,0,0,null,null,null,null,null,null,1,1]
[null,null,null,null,0,null,0,null,0,null,0,0,null,null,null,null,null,null,1,1]
[null,null,null,null,0,null,0,null,0,null,0,0,null,null,null,null,null,null,{"$f":"CEILING(MONTH(A422)/3,1)","v":1},{"$f":"CEILING(MONTH(A422),1)","v":1}]
[null,null,null,null,0,null,0,null,0,null,0,0,null,null,null,null,null,null,1,1]
[null,null,null,null,0,null,0,null,0,null,0,0,null,null,null,null,null,null,1,1]
[null,null,null,null,0,null,0,null,0,null,0,0,null,null,null,null,null,null,1,1]
[null,null,null,null,0,null,0,null,0,null,0,0,null,null,null,null,null,null,1,1]
[null,null,null,null,0,null,0,null,0,null,0,0,null,null,null,null,null,null,1,1]
[null,null,null,null,0,null,0,null,0,null,0,0,null,null,null,null,null,null,1,1]
[null,null,null,null,0,null,0,null,0,null,0,0,null,null,null,null,null,null,1,1]
[null,null,null,null,{"$f":"F430+H430+J430","v":0},null,0,null,0,null,0,0,null,null,null,null,null,null,1,1]
[null,null,null,null,0,null,{"$f":"F431*0","v":0},null,{"$f":"H431*0.09","v":0},null,{"$f":"J431*0.21","v":0},0,null,null,null,null,null,null,1,1]
[null,null,null,null,0,null,0,null,0,null,0,0,null,null,null,null,null,null,1,1]
[null,null,null,null,0,null,0,null,0,null,0,0,null,null,null,null,null,null,1,1]
[null,null,null,null,0,null,0,null,0,null,0,0,null,null,null,null,null,null,1,1]
[null,null,null,null,0,null,0,null,0,null,0,0,null,null,null,null,null,null,1,1]
[null,null,null,null,0,null,0,null,0,null,0,0,null,null,null,null,null,null,1,1]
[null,null,null,null,0,null,0,null,0,null,0,0,null,null,null,null,null,null,1,1]
[null,null,null,null,0,null,0,null,0,null,0,0,null,null,null,null,null,null,1,1]
[null,null,null,null,0,null,0,null,0,null,0,0,null,null,null,null,null,null,1,1]
[null,null,null,null,0,null,0,null,0,null,0,0,null,null,null,null,null,null,1,1]
[null,null,null,null,0,null,0,null,0,null,0,0,null,null,null,null,null,null,1,1]
[null,null,null,null,0,null,0,null,0,null,0,0,null,null,null,null,null,null,1,1]
[null,null,null,null,0,null,0,null,0,null,0,0,null,null,null,null,null,null,1,1]
[null,null,null,null,0,null,0,null,0,null,0,0,null,null,null,null,null,null,1,1]
[null,null,null,null,0,null,0,null,0,null,0,0,null,null,null,null,null,null,1,1]
[null,null,null,null,0,null,0,null,0,null,0,0,null,null,null,null,null,null,1,1]
[null,null,null,null,0,null,0,null,0,null,0,0,null,null,null,null,null,null,1,1]
[null,null,null,null,0,null,0,null,0,null,0,0,null,null,null,null,null,null,1,1]
[null,null,null,null,0,null,0,null,0,null,0,{"$f":"SUM(F449:K449)","v":0},null,null,null,null,null,null,1,1]
[null,null,null,null,0,null,0,null,0,null,0,0,null,null,null,null,null,null,1,1]
[null,null,null,null,0,null,0,null,0,null,0,0,null,null,null,null,null,null,1,1]
[null,null,null,null,0,null,0,null,0,null,0,0,null,null,null,null,null,null,1,1]
[null,null,null,null,0,null,0,null,0,null,0,0,null,null,null,null,null,null,1,1]
[null,null,null,null,0,null,0,null,0,null,0,0,null,null,null,null,null,null,1,1]
[null,null,null,null,0,null,0,null,0,null,0,0,null,null,null,null,null,null,1,1]
[null,null,null,null,0,null,0,null,0,null,0,0,null,null,null,null,null,null,1,1]
[null,null,null,null,0,null,0,null,0,null,0,0,null,null,null,null,null,null,1,1]
[null,null,null,null,0,null,0,null,0,null,0,0,null,null,null,null,null,null,1,1]
[null,null,null,null,0,null,0,null,0,null,0,0,null,null,null,null,null,null,1,1]
[null,null,null,null,0,null,0,null,0,null,0,0,null,null,null,null,null,null,1,1]
[null,null,null,null,0,null,0,null,0,null,0,0,null,null,null,null,null,null,1,1]
[null,null,null,null,0,null,0,null,0,null,0,0,null,null,null,null,null,null,1,1]
[null,null,null,null,0,null,0,null,0,null,0,0,null,null,null,null,null,null,1,1]
[null,null,null,null,0,null,0,null,0,null,0,0,null,null,null,null,null,null,1,1]
[null,null,null,null,0,null,0,null,0,null,0,0,null,null,null,null,null,null,1,1]
[null,null,null,null,0,null,0,null,0,null,0,0,null,null,null,null,null,null,1,1]
[null,null,null,null,0,null,0,null,0,null,0,0,null,null,null,null,null,null,1,1]
[null,null,null,null,0,null,0,null,0,null,0,0,null,null,null,null,null,null,1,1]
[null,null,null,null,0,null,0,null,0,null,0,0,null,null,null,null,null,null,1,1]
[null,null,null,null,0,null,0,null,0,null,0,0,null,null,null,null,null,null,1,1]
[null,null,null,null,0,null,0,null,0,null,0,0,null,null,null,null,null,null,1,1]
[null,null,null,null,0,null,0,null,0,null,0,0,null,null,null,null,null,null,1,1]
[null,null,null,null,0,null,0,null,0,null,0,0,null,null,null,null,null,null,1,1]
[null,null,null,null,0,null,0,null,0,null,0,0,null,null,null,null,null,null,1,1]
[null,null,null,null,0,null,0,null,0,null,0,0,null,null,null,null,null,null,1,1]
[null,null,null,null,0,null,0,null,0,null,0,0,null,null,null,null,null,null,1,1]
[null,null,null,null,0,null,0,null,0,null,0,0,null,null,null,null,null,null,1,1]
[null,null,null,null,0,null,0,null,0,null,0,0,null,null,null,null,null,null,1,1]
[null,null,null,null,0,null,0,null,0,null,0,0,null,null,null,null,null,null,1,1]
[null,null,null,null,0,null,0,null,0,null,0,0,null,null,null,null,null,null,1,1]
[null,null,null,null,0,null,0,null,0,null,0,0,null,null,null,null,null,null,1,1]
[null,null,null,null,0,null,0,null,0,null,0,0,null,null,null,null,null,null,1,1]
[null,null,null,null,0,null,0,null,0,null,0,0,null,null,null,null,null,null,1,1]
[null,null,null,null,0,null,0,null,0,null,0,0,null,null,null,null,null,null,1,1]
[null,null,null,null,0,null,0,null,0,null,0,0,null,null,null,null,null,null,1,1]
[null,null,null,null,0,null,0,null,0,null,0,0,null,null,null,null,null,null,{"$f":"CEILING(MONTH(A486)/3,1)","v":1},{"$f":"CEILING(MONTH(A486),1)","v":1}]
[null,null,null,null,0,null,0,null,0,null,0,0,null,null,null,null,null,null,1,1]
[null,null,null,null,0,null,0,null,0,null,0,0,null,null,null,null,null,null,1,1]
[null,null,null,null,0,null,0,null,0,null,0,0,null,null,null,null,null,null,1,1]
[null,null,null,null,0,null,0,null,0,null,0,0,null,null,null,null,null,null,1,1]
[null,null,null,null,0,null,0,null,0,null,0,0,null,null,null,null,null,null,1,1]
[null,null,null,null,0,null,0,null,0,null,0,0,null,null,null,null,null,null,1,1]
[null,null,null,null,0,null,0,null,0,null,0,0,null,null,null,null,null,null,1,1]
[null,null,null,null,{"$f":"F494+H494+J494","v":0},null,0,null,0,null,0,0,null,null,null,null,null,null,1,1]
[null,null,null,null,0,null,{"$f":"F495*0","v":0},null,{"$f":"H495*0.09","v":0},null,{"$f":"J495*0.21","v":0},0,null,null,null,null,null,null,1,1]
[null,null,null,null,0,null,0,null,0,null,0,0,null,null,null,null,null,null,1,1]
[null,null,null,null,0,null,0,null,0,null,0,0,null,null,null,null,null,null,1,1]
[null,null,null,null,0,null,0,null,0,null,0,0,null,null,null,null,null,null,1,1]
[null,null,null,null,0,null,0,null,0,null,0,0,null,null,null,null,null,null,1,1]
[null,null,null,null,0,null,0,null,0,null,0,0,null,null,null,null,null,null,1,1]
[null,null,null,null,0,null,0,null,0,null,0,0,null,null,null,null,null,null,1,1]
[null,null,null,null,0,null,0,null,0,null,0,0,null,null,null,null,null,null,1,1]
[null,null,null,null,0,null,0,null,0,null,0,0,null,null,null,null,null,null,1,1]
[null,null,null,null,0,null,0,null,0,null,0,0,null,null,null,null,null,null,1,1]
[null,null,null,null,0,null,0,null,0,null,0,0,null,null,null,null,null,null,1,1]
[null,null,null,null,0,null,0,null,0,null,0,0,null,null,null,null,null,null,1,1]
[null,null,null,null,0,null,0,null,0,null,0,0,null,null,null,null,null,null,1,1]
[null,null,null,null,0,null,0,null,0,null,0,0,null,null,null,null,null,null,1,1]
[null,null,null,null,0,null,0,null,0,null,0,0,null,null,null,null,null,null,1,1]
[null,null,null,null,0,null,0,null,0,null,0,0,null,null,null,null,null,null,1,1]
[null,null,null,null,0,null,0,null,0,null,0,0,null,null,null,null,null,null,1,1]
[null,null,null,null,0,null,0,null,0,null,0,0,null,null,null,null,null,null,1,1]
[null,null,null,null,0,null,0,null,0,null,0,{"$f":"SUM(F513:K513)","v":0},null,null,null,null,null,null,1,1]
[null,null,null,null,0,null,0,null,0,null,0,0,null,null,null,null,null,null,1,1]
[null,null,null,null,0,null,0,null,0,null,0,0,null,null,null,null,null,null,1,1]
[null,null,null,null,0,null,0,null,0,null,0,0,null,null,null,null,null,null,1,1]
[null,null,null,null,0,null,0,null,0,null,0,0,null,null,null,null,null,null,1,1]
[null,null,null,null,0,null,0,null,0,null,0,0,null,null,null,null,null,null,1,1]
[null,null,null,null,0,null,0,null,0,null,0,0,null,null,null,null,null,null,1,1]
[null,null,null,null,0,null,0,null,0,null,0,0,null,null,null,null,null,null,1,1]
[null,null,null,null,0,null,0,null,0,null,0,0,null,null,null,null,null,null,1,1]
[null,null,null,null,0,null,0,null,0,null,0,0,null,null,null,null,null,null,1,1]
[null,null,null,null,0,null,0,null,0,null,0,0,null,null,null,null,null,null,1,1]
[null,null,null,null,0,null,0,null,0,null,0,0,null,null,null,null,null,null,1,1]
[null,null,null,null,0,null,0,null,0,null,0,0,null,null,null,null,null,null,1,1]
[null,null,null,null,0,null,0,null,0,null,0,0,null,null,null,null,null,null,1,1]
[null,null,null,null,0,null,0,null,0,null,0,0,null,null,null,null,null,null,1,1]
[null,null,null,null,0,null,0,null,0,null,0,0,null,null,null,null,null,null,1,1]
[null,null,null,null,0,null,0,null,0,null,0,0,null,null,null,null,null,null,1,1]
[null,null,null,null,0,null,0,null,0,null,0,0,null,null,null,null,null,null,1,1]
[null,null,null,null,0,null,0,null,0,null,0,0,null,null,null,null,null,null,1,1]
[null,null,null,null,0,null,0,null,0,null,0,0,null,null,null,null,null,null,1,1]
[null,null,null,null,0,null,0,null,0,null,0,0,null,null,null,null,null,null,1,1]
[null,null,null,null,0,null,0,null,0,null,0,0,null,null,null,null,null,null,1,1]
[null,null,null,null,0,null,0,null,0,null,0,0,null,null,null,null,null,null,1,1]
[null,null,null,null,0,null,0,null,0,null,0,0,null,null,null,null,null,null,1,1]
[null,null,null,null,0,null,0,null,0,null,0,0,null,null,null,null,null,null,1,1]
[null,null,null,null,0,null,0,null,0,null,0,0,null,null,null,null,null,null,1,1]
[null,null,null,null,0,null,0,null,0,null,0,0,null,null,null,null,null,null,1,1]
[null,null,null,null,0,null,0,null,0,null,0,0,null,null,null,null,null,null,1,1]
[null,null,null,null,0,null,0,null,0,null,0,0,null,null,null,null,null,null,1,1]
[null,null,null,null,0,null,0,null,0,null,0,0,null,null,null,null,null,null,1,1]
[null,null,null,null,0,null,0,null,0,null,0,0,null,null,null,null,null,null,1,1]
[null,null,null,null,0,null,0,null,0,null,0,0,null,null,null,null,null,null,1,1]
[null,null,null,null,0,null,0,null,0,null,0,0,null,null,null,null,null,null,1,1]
[null,null,null,null,0,null,0,null,0,null,0,0,null,null,null,null,null,null,1,1]
[null,null,null,null,0,null,0,null,0,null,0,0,null,null,null,null,null,null,1,1]
[null,null,null,null,0,null,0,null,0,null,0,0,null,null,null,null,null,null,1,1]
[null,null,null,null,0,null,0,null,0,null,0,0,null,null,null,null,null,null,1,1]
[null,null,null,null,0,null,0,null,0,null,0,0,null,null,null,null,null,null,{"$f":"CEILING(MONTH(A550)/3,1)","v":1},{"$f":"CEILING(MONTH(A550),1)","v":1}]
[null,null,null,null,0,null,0,null,0,null,0,0,null,null,null,null,null,null,1,1]
[null,null,null,null,0,null,0,null,0,null,0,0,null,null,null,null,null,null,1,1]
[null,null,null,null,0,null,0,null,0,null,0,0,null,null,null,null,null,null,1,1]
[null,null,null,null,0,null,0,null,0,null,0,0,null,null,null,null,null,null,1,1]
[null,null,null,null,0,null,0,null,0,null,0,0,null,null,null,null,null,null,1,1]
[null,null,null,null,0,null,0,null,0,null,0,0,null,null,null,null,null,null,1,1]
[null,null,null,null,0,null,0,null,0,null,0,0,null,null,null,null,null,null,1,1]
[null,null,null,null,{"$f":"F558+H558+J558","v":0},null,0,null,0,null,0,0,null,null,null,null,null,null,1,1]
[null,null,null,null,0,null,{"$f":"F559*0","v":0},null,{"$f":"H559*0.09","v":0},null,{"$f":"J559*0.21","v":0},0,null,null,null,null,null,null,1,1]
[null,null,null,null,0,null,0,null,0,null,0,0,null,null,null,null,null,null,1,1]
[null,null,null,null,0,null,0,null,0,null,0,0,null,null,null,null,null,null,1,1]
[null,null,null,null,0,null,0,null,0,null,0,0,null,null,null,null,null,null,1,1]
[null,null,null,null,0,null,0,null,0,null,0,0,null,null,null,null,null,null,1,1]
[null,null,null,null,0,null,0,null,0,null,0,0,null,null,null,null,null,null,1,1]
[null,null,null,null,0,null,0,null,0,null,0,0,null,null,null,null,null,null,1,1]
[null,null,null,null,0,null,0,null,0,null,0,0,null,null,null,null,null,null,1,1]
[null,null,null,null,0,null,0,null,0,null,0,0,null,null,null,null,null,null,1,1]
[null,null,null,null,0,null,0,null,0,null,0,0,null,null,null,null,null,null,1,1]
[null,null,null,null,0,null,0,null,0,null,0,0,null,null,null,null,null,null,1,1]
[null,null,null,null,0,null,0,null,0,null,0,0,null,null,null,null,null,null,1,1]
[null,null,null,null,0,null,0,null,0,null,0,0,null,null,null,null,null,null,1,1]
[null,null,null,null,0,null,0,null,0,null,0,0,null,null,null,null,null,null,1,1]
[null,null,null,null,0,null,0,null,0,null,0,0,null,null,null,null,null,null,1,1]
[null,null,null,null,0,null,0,null,0,null,0,0,null,null,null,null,null,null,1,1]
[null,null,null,null,0,null,0,null,0,null,0,0,null,null,null,null,null,null,1,1]
[null,null,null,null,0,null,0,null,0,null,0,0,null,null,null,null,null,null,1,1]
[null,null,null,null,0,null,0,null,0,null,0,{"$f":"SUM(F577:K577)","v":0},null,null,null,null,null,null,1,1]
[null,null,null,null,0,null,0,null,0,null,0,0,null,null,null,null,null,null,1,1]
[null,null,null,null,0,null,0,null,0,null,0,0,null,null,null,null,null,null,1,1]
[null,null,null,null,0,null,0,null,0,null,0,0,null,null,null,null,null,null,1,1]
[null,null,null,null,0,null,0,null,0,null,0,0,null,null,null,null,null,null,1,1]
[null,null,null,null,0,null,0,null,0,null,0,0,null,null,null,null,null,null,1,1]
[null,null,null,null,0,null,0,null,0,null,0,0,null,null,null,null,null,null,1,1]
[null,null,null,null,0,null,0,null,0,null,0,0,null,null,null,null,null,null,1,1]
[null,null,null,null,0,null,0,null,0,null,0,0,null,null,null,null,null,null,1,1]
[null,null,null,null,0,null,0,null,0,null,0,0,null,null,null,null,null,null,1,1]
[null,null,null,null,0,null,0,null,0,null,0,0,null,null,null,null,null,null,1,1]
[null,null,null,null,0,null,0,null,0,null,0,0,null,null,null,null,null,null,1,1]
[null,null,null,null,0,null,0,null,0,null,0,0,null,null,null,null,null,null,1,1]
[null,null,null,null,0,null,0,null,0,null,0,0,null,null,null,null,null,null,1,1]
[null,null,null,null,0,null,0,null,0,null,0,0,null,null,null,null,null,null,1,1]
[null,null,null,null,0,null,0,null,0,null,0,0,null,null,null,null,null,null,1,1]
[null,null,null,null,0,null,0,null,0,null,0,0,null,null,null,null,null,null,1,1]
[null,null,null,null,0,null,0,null,0,null,0,0,null,null,null,null,null,null,1,1]
[null,null,null,null,0,null,0,null,0,null,0,0,null,null,null,null,null,null,1,1]
[null,null,null,null,0,null,0,null,0,null,0,0,null,null,null,null,null,null,1,1]
[null,null,null,null,0,null,0,null,0,null,0,0,null,null,null,null,null,null,1,1]
[null,null,null,null,0,null,0,null,0,null,0,0,null,null,null,null,null,null,1,1]
[null,null,null,null,0,null,0,null,0,null,0,0,null,null,null,null,null,null,1,1]
[null,null,null,null,0,null,0,null,0,null,0,0,null,null,null,null,null,null,1,1]
[null,null,null,null,0,null,0,null,0,null,0,0,null,null,null,null,null,null,1,1]
[null,null,null,null,0,null,0,null,0,null,0,0,null,null,null,null,null,null,1,1]
[null,null,null,null,0,null,0,null,0,null,0,0,null,null,null,null,null,null,1,1]
[null,null,null,null,0,null,0,null,0,null,0,0,null,null,null,null,null,null,1,1]
[null,null,null,null,0,null,0,null,0,null,0,0,null,null,null,null,null,null,1,1]
[null,null,null,null,0,null,0,null,0,null,0,0,null,null,null,null,null,null,1,1]
[null,null,null,null,0,null,0,null,0,null,0,0,null,null,null,null,null,null,1,1]
[null,null,null,null,0,null,0,null,0,null,0,0,null,null,null,null,null,null,1,1]
[null,null,null,null,0,null,0,null,0,null,0,0,null,null,null,null,null,null,1,1]
[null,null,null,null,0,null,0,null,0,null,0,0,null,null,null,null,null,null,1,1]
[null,null,null,null,0,null,0,null,0,null,0,0,null,null,null,null,null,null,1,1]
[null,null,null,null,0,null,0,null,0,null,0,0,null,null,null,null,null,null,1,1]
[null,null,null,null,0,null,0,null,0,null,0,0,null,null,null,null,null,null,1,1]
[null,null,null,null,0,null,0,null,0,null,0,0,null,null,null,null,null,null,{"$f":"CEILING(MONTH(A614)/3,1)","v":1},{"$f":"CEILING(MONTH(A614),1)","v":1}]
[null,null,null,null,0,null,0,null,0,null,0,0,null,null,null,null,null,null,1,1]
[null,null,null,null,0,null,0,null,0,null,0,0,null,null,null,null,null,null,1,1]
[null,null,null,null,0,null,0,null,0,null,0,0,null,null,null,null,null,null,1,1]
[null,null,null,null,0,null,0,null,0,null,0,0,null,null,null,null,null,null,1,1]
[null,null,null,null,0,null,0,null,0,null,0,0,null,null,null,null,null,null,1,1]
[null,null,null,null,0,null,0,null,0,null,0,0,null,null,null,null,null,null,1,1]
[null,null,null,null,0,null,0,null,0,null,0,0,null,null,null,null,null,null,1,1]
[null,null,null,null,{"$f":"F622+H622+J622","v":0},null,0,null,0,null,0,0,null,null,null,null,null,null,1,1]
[null,null,null,null,0,null,{"$f":"F623*0","v":0},null,{"$f":"H623*0.09","v":0},null,{"$f":"J623*0.21","v":0},0,null,null,null,null,null,null,1,1]
[null,null,null,null,0,null,0,null,0,null,0,0,null,null,null,null,null,null,1,1]
[null,null,null,null,0,null,0,null,0,null,0,0,null,null,null,null,null,null,1,1]
[null,null,null,null,0,null,0,null,0,null,0,0,null,null,null,null,null,null,1,1]
[null,null,null,null,0,null,0,null,0,null,0,0,null,null,null,null,null,null,1,1]
[null,null,null,null,0,null,0,null,0,null,0,0,null,null,null,null,null,null,1,1]
[null,null,null,null,0,null,0,null,0,null,0,0,null,null,null,null,null,null,1,1]
[null,null,null,null,0,null,0,null,0,null,0,0,null,null,null,null,null,null,1,1]
[null,null,null,null,0,null,0,null,0,null,0,0,null,null,null,null,null,null,1,1]
[null,null,null,null,0,null,0,null,0,null,0,0,null,null,null,null,null,null,1,1]
[null,null,null,null,0,null,0,null,0,null,0,0,null,null,null,null,null,null,1,1]
[null,null,null,null,0,null,0,null,0,null,0,0,null,null,null,null,null,null,1,1]
[null,null,null,null,0,null,0,null,0,null,0,0,null,null,null,null,null,null,1,1]
[null,null,null,null,0,null,0,null,0,null,0,0,null,null,null,null,null,null,1,1]
[null,null,null,null,0,null,0,null,0,null,0,0,null,null,null,null,null,null,1,1]
[null,null,null,null,0,null,0,null,0,null,0,0,null,null,null,null,null,null,1,1]
[null,null,null,null,0,null,0,null,0,null,0,0,null,null,null,null,null,null,1,1]
[null,null,null,null,0,null,0,null,0,null,0,0,null,null,null,null,null,null,1,1]
[null,null,null,null,0,null,0,null,0,null,0,{"$f":"SUM(F641:K641)","v":0},null,null,null,null,null,null,1,1]
[null,null,null,null,0,null,0,null,0,null,0,0,null,null,null,null,null,null,1,1]
[null,null,null,null,0,null,0,null,0,null,0,0,null,null,null,null,null,null,1,1]
[null,null,null,null,0,null,0,null,0,null,0,0,null,null,null,null,null,null,1,1]
[null,null,null,null,0,null,0,null,0,null,0,0,null,null,null,null,null,null,1,1]
[null,null,null,null,0,null,0,null,0,null,0,0,null,null,null,null,null,null,1,1]
[null,null,null,null,0,null,0,null,0,null,0,0,null,null,null,null,null,null,1,1]
[null,null,null,null,0,null,0,null,0,null,0,0,null,null,null,null,null,null,1,1]
[null,null,null,null,0,null,0,null,0,null,0,0,null,null,null,null,null,null,1,1]
[null,null,null,null,0,null,0,null,0,null,0,0,null,null,null,null,null,null,1,1]
[null,null,null,null,0,null,0,null,0,null,0,0,null,null,null,null,null,null,1,1]
[null,null,null,null,0,null,0,null,0,null,0,0,null,null,null,null,null,null,1,1]
[null,null,null,null,0,null,0,null,0,null,0,0,null,null,null,null,null,null,1,1]
[null,null,null,null,0,null,0,null,0,null,0,0,null,null,null,null,null,null,1,1]
[null,null,null,null,0,null,0,null,0,null,0,0,null,null,null,null,null,null,1,1]
[null,null,null,null,0,null,0,null,0,null,0,0,null,null,null,null,null,null,1,1]
[null,null,null,null,0,null,0,null,0,null,0,0,null,null,null,null,null,null,1,1]
[null,null,null,null,0,null,0,null,0,null,0,0,null,null,null,null,null,null,1,1]
[null,null,null,null,0,null,0,null,0,null,0,0,null,null,null,null,null,null,1,1]
[null,null,null,null,0,null,0,null,0,null,0,0,null,null,null,null,null,null,1,1]
[null,null,null,null,0,null,0,null,0,null,0,0,null,null,null,null,null,null,1,1]
[null,null,null,null,0,null,0,null,0,null,0,0,null,null,null,null,null,null,1,1]
[null,null,null,null,0,null,0,null,0,null,0,0,null,null,null,null,null,null,1,1]
[null,null,null,null,0,null,0,null,0,null,0,0,null,null,null,null,null,null,1,1]
[null,null,null,null,0,null,0,null,0,null,0,0,null,null,null,null,null,null,1,1]
[null,null,null,null,0,null,0,null,0,null,0,0,null,null,null,null,null,null,1,1]
[null,null,null,null,0,null,0,null,0,null,0,0,null,null,null,null,null,null,1,1]
[null,null,null,null,0,null,0,null,0,null,0,0,null,null,null,null,null,null,1,1]
[null,null,null,null,0,null,0,null,0,null,0,0,null,null,null,null,null,null,1,1]
[null,null,null,null,0,null,0,null,0,null,0,0,null,null,null,null,null,null,1,1]
[null,null,null,null,0,null,0,null,0,null,0,0,null,null,null,null,null,null,1,1]
[null,null,null,null,0,null,0,null,0,null,0,0,null,null,null,null,null,null,1,1]
[null,null,null,null,0,null,0,null,0,null,0,0,null,null,null,null,null,null,1,1]
[null,null,null,null,0,null,0,null,0,null,0,0,null,null,null,null,null,null,1,1]
[null,null,null,null,0,null,0,null,0,null,0,0,null,null,null,null,null,null,1,1]
[null,null,null,null,0,null,0,null,0,null,0,0,null,null,null,null,null,null,1,1]
[null,null,null,null,0,null,0,null,0,null,0,0,null,null,null,null,null,null,1,1]
[null,null,null,null,0,null,0,null,0,null,0,0,null,null,null,null,null,null,{"$f":"CEILING(MONTH(A678)/3,1)","v":1},{"$f":"CEILING(MONTH(A678),1)","v":1}]
[null,null,null,null,0,null,0,null,0,null,0,0,null,null,null,null,null,null,1,1]
[null,null,null,null,0,null,0,null,0,null,0,0,null,null,null,null,null,null,1,1]
[null,null,null,null,0,null,0,null,0,null,0,0,null,null,null,null,null,null,1,1]
[null,null,null,null,0,null,0,null,0,null,0,0,null,null,null,null,null,null,1,1]
[null,null,null,null,0,null,0,null,0,null,0,0,null,null,null,null,null,null,1,1]
[null,null,null,null,0,null,0,null,0,null,0,0,null,null,null,null,null,null,1,1]
[null,null,null,null,0,null,0,null,0,null,0,0,null,null,null,null,null,null,1,1]
[null,null,null,null,{"$f":"F686+H686+J686","v":0},null,0,null,0,null,0,0,null,null,null,null,null,null,1,1]
[null,null,null,null,0,null,{"$f":"F687*0","v":0},null,{"$f":"H687*0.09","v":0},null,{"$f":"J687*0.21","v":0},0,null,null,null,null,null,null,1,1]
[null,null,null,null,0,null,0,null,0,null,0,0,null,null,null,null,null,null,1,1]
[null,null,null,null,0,null,0,null,0,null,0,0,null,null,null,null,null,null,1,1]
[null,null,null,null,0,null,0,null,0,null,0,0,null,null,null,null,null,null,1,1]
[null,null,null,null,0,null,0,null,0,null,0,0,null,null,null,null,null,null,1,1]
[null,null,null,null,0,null,0,null,0,null,0,0,null,null,null,null,null,null,1,1]
[null,null,null,null,0,null,0,null,0,null,0,0,null,null,null,null,null,null,1,1]
[null,null,null,null,0,null,0,null,0,null,0,0,null,null,null,null,null,null,1,1]
[null,null,null,null,0,null,0,null,0,null,0,0,null,null,null,null,null,null,1,1]
[null,null,null,null,0,null,0,null,0,null,0,0,null,null,null,null,null,null,1,1]
[null,null,null,null,0,null,0,null,0,null,0,0,null,null,null,null,null,null,1,1]
[null,null,null,null,0,null,0,null,0,null,0,0,null,null,null,null,null,null,1,1]
[null,null,null,null,0,null,0,null,0,null,0,0,null,null,null,null,null,null,1,1]
[null,null,null,null,0,null,0,null,0,null,0,0,null,null,null,null,null,null,1,1]
[null,null,null,null,0,null,0,null,0,null,0,0,null,null,null,null,null,null,1,1]
[null,null,null,null,0,null,0,null,0,null,0,0,null,null,null,null,null,null,1,1]
[null,null,null,null,0,null,0,null,0,null,0,0,null,null,null,null,null,null,1,1]
[null,null,null,null,0,null,0,null,0,null,0,0,null,null,null,null,null,null,1,1]
[null,null,null,null,0,null,0,null,0,null,0,{"$f":"SUM(F705:K705)","v":0},null,null,null,null,null,null,1,1]
[null,null,null,null,0,null,0,null,0,null,0,0,null,null,null,null,null,null,1,1]
[null,null,null,null,0,null,0,null,0,null,0,0,null,null,null,null,null,null,1,1]
[null,null,null,null,0,null,0,null,0,null,0,0,null,null,null,null,null,null,1,1]
[null,null,null,null,0,null,0,null,0,null,0,0,null,null,null,null,null,null,1,1]
[null,null,null,null,0,null,0,null,0,null,0,0,null,null,null,null,null,null,1,1]
[null,null,null,null,0,null,0,null,0,null,0,0,null,null,null,null,null,null,1,1]
[null,null,null,null,0,null,0,null,0,null,0,0,null,null,null,null,null,null,1,1]
[null,null,null,null,0,null,0,null,0,null,0,0,null,null,null,null,null,null,1,1]
[null,null,null,null,0,null,0,null,0,null,0,0,null,null,null,null,null,null,1,1]
[null,null,null,null,0,null,0,null,0,null,0,0,null,null,null,null,null,null,1,1]
[null,null,null,null,0,null,0,null,0,null,0,0,null,null,null,null,null,null,1,1]
[null,null,null,null,0,null,0,null,0,null,0,0,null,null,null,null,null,null,1,1]
[null,null,null,null,0,null,0,null,0,null,0,0,null,null,null,null,null,null,1,1]
[null,null,null,null,0,null,0,null,0,null,0,0,null,null,null,null,null,null,1,1]
[null,null,null,null,0,null,0,null,0,null,0,0,null,null,null,null,null,null,1,1]
[null,null,null,null,0,null,0,null,0,null,0,0,null,null,null,null,null,null,1,1]
[null,null,null,null,0,null,0,null,0,null,0,0,null,null,null,null,null,null,1,1]
[null,null,null,null,0,null,0,null,0,null,0,0,null,null,null,null,null,null,1,1]
[null,null,null,null,0,null,0,null,0,null,0,0,null,null,null,null,null,null,1,1]
[null,null,null,null,0,null,0,null,0,null,0,0,null,null,null,null,null,null,1,1]
[null,null,null,null,0,null,0,null,0,null,0,0,null,null,null,null,null,null,1,1]
[null,null,null,null,0,null,0,null,0,null,0,0,null,null,null,null,null,null,1,1]
[null,null,null,null,0,null,0,null,0,null,0,0,null,null,null,null,null,null,1,1]
[null,null,null,null,0,null,0,null,0,null,0,0,null,null,null,null,null,null,1,1]
[null,null,null,null,0,null,0,null,0,null,0,0,null,null,null,null,null,null,1,1]
[null,null,null,null,0,null,0,null,0,null,0,0,null,null,null,null,null,null,1,1]
[null,null,null,null,0,null,0,null,0,null,0,0,null,null,null,null,null,null,1,1]
[null,null,null,null,0,null,0,null,0,null,0,0,null,null,null,null,null,null,1,1]
[null,null,null,null,0,null,0,null,0,null,0,0,null,null,null,null,null,null,1,1]
[null,null,null,null,0,null,0,null,0,null,0,0,null,null,null,null,null,null,1,1]
[null,null,null,null,0,null,0,null,0,null,0,0,null,null,null,null,null,null,1,1]
[null,null,null,null,0,null,0,null,0,null,0,0,null,null,null,null,null,null,1,1]
[null,null,null,null,0,null,0,null,0,null,0,0,null,null,null,null,null,null,1,1]
[null,null,null,null,0,null,0,null,0,null,0,0,null,null,null,null,null,null,1,1]
[null,null,null,null,0,null,0,null,0,null,0,0,null,null,null,null,null,null,1,1]
[null,null,null,null,0,null,0,null,0,null,0,0,null,null,null,null,null,null,1,1]
[null,null,null,null,0,null,0,null,0,null,0,0,null,null,null,null,null,null,{"$f":"CEILING(MONTH(A742)/3,1)","v":1},{"$f":"CEILING(MONTH(A742),1)","v":1}]
[null,null,null,null,0,null,0,null,0,null,0,0,null,null,null,null,null,null,1,1]
[null,null,null,null,0,null,0,null,0,null,0,0,null,null,null,null,null,null,1,1]
[null,null,null,null,0,null,0,null,0,null,0,0,null,null,null,null,null,null,1,1]
[null,null,null,null,0,null,0,null,0,null,0,0,null,null,null,null,null,null,1,1]
[null,null,null,null,0,null,0,null,0,null,0,0,null,null,null,null,null,null,1,1]
[null,null,null,null,0,null,0,null,0,null,0,0,null,null,null,null,null,null,1,1]
[null,null,null,null,0,null,0,null,0,null,0,0,null,null,null,null,null,null,1,1]
[null,null,null,null,{"$f":"F750+H750+J750","v":0},null,0,null,0,null,0,0,null,null,null,null,null,null,1,1]
[null,null,null,null,0,null,{"$f":"F751*0","v":0},null,{"$f":"H751*0.09","v":0},null,{"$f":"J751*0.21","v":0},0,null,null,null,null,null,null,1,1]
[null,null,null,null,0,null,0,null,0,null,0,0,null,null,null,null,null,null,1,1]
[null,null,null,null,0,null,0,null,0,null,0,0,null,null,null,null,null,null,1,1]
[null,null,null,null,0,null,0,null,0,null,0,0,null,null,null,null,null,null,1,1]
[null,null,null,null,0,null,0,null,0,null,0,0,null,null,null,null,null,null,1,1]
[null,null,null,null,0,null,0,null,0,null,0,0,null,null,null,null,null,null,1,1]
[null,null,null,null,0,null,0,null,0,null,0,0,null,null,null,null,null,null,1,1]
[null,null,null,null,0,null,0,null,0,null,0,0,null,null,null,null,null,null,1,1]
[null,null,null,null,0,null,0,null,0,null,0,0,null,null,null,null,null,null,1,1]
[null,null,null,null,0,null,0,null,0,null,0,0,null,null,null,null,null,null,1,1]
[null,null,null,null,0,null,0,null,0,null,0,0,null,null,null,null,null,null,1,1]
[null,null,null,null,0,null,0,null,0,null,0,0,null,null,null,null,null,null,1,1]
[null,null,null,null,0,null,0,null,0,null,0,0,null,null,null,null,null,null,1,1]
[null,null,null,null,0,null,0,null,0,null,0,0,null,null,null,null,null,null,1,1]
[null,null,null,null,0,null,0,null,0,null,0,0,null,null,null,null,null,null,1,1]
[null,null,null,null,0,null,0,null,0,null,0,0,null,null,null,null,null,null,1,1]
[null,null,null,null,0,null,0,null,0,null,0,0,null,null,null,null,null,null,1,1]
[null,null,null,null,0,null,0,null,0,null,0,0,null,null,null,null,null,null,1,1]
[null,null,null,null,0,null,0,null,0,null,0,{"$f":"SUM(F769:K769)","v":0},null,null,null,null,null,null,1,1]
[null,null,null,null,0,null,0,null,0,null,0,0,null,null,null,null,null,null,1,1]
[null,null,null,null,0,null,0,null,0,null,0,0,null,null,null,null,null,null,1,1]
[null,null,null,null,0,null,0,null,0,null,0,0,null,null,null,null,null,null,1,1]
[null,null,null,null,0,null,0,null,0,null,0,0,null,null,null,null,null,null,1,1]
[null,null,null,null,0,null,0,null,0,null,0,0,null,null,null,null,null,null,1,1]
[null,null,null,null,0,null,0,null,0,null,0,0,null,null,null,null,null,null,1,1]
[null,null,null,null,0,null,0,null,0,null,0,0,null,null,null,null,null,null,1,1]
[null,null,null,null,0,null,0,null,0,null,0,0,null,null,null,null,null,null,1,1]
[null,null,null,null,0,null,0,null,0,null,0,0,null,null,null,null,null,null,1,1]
[null,null,null,null,0,null,0,null,0,null,0,0,null,null,null,null,null,null,1,1]
[null,null,null,null,0,null,0,null,0,null,0,0]
[null,null,null,null,0,null,0,null,0,null,0,0]
[null,null,null,null,0,null,0,null,0,null,0,0]
[null,null,null,null,0,null,0,null,0,null,0,0]
[null,null,null,null,0,null,0,null,0,null,0,0]
[null,null,null,null,0,null,0,null,0,null,0,0]
[null,null,null,null,0,null,0,null,0,null,0,0]
[null,null,null,null,0,null,0,null,0,null,0,0]
[null,null,null,null,0,null,0,null,0,null,0,0]
[null,null,null,null,0,null,0,null,0,null,0,0]
[null,null,null,null,0,null,0,null,0,null,0,0]
[null,null,null,null,0,null,0,null,0,null,0,0]
[null,null,null,null,0,null,0,null,0,null,0,0]
[null,null,null,null,0,null,0,null,0,null,0,0]
[null,null,null,null,0,null,0,null,0,null,0,0]
[null,null,null,null,0,null,0,null,0,null,0,0]
[null,null,null,null,0,null,0,null,0,null,0,0]
[null,null,null,null,0,null,0,null,0,null,0,0]
[null,null,null,null,0,null,0,null,0,null,0,0]
[null,null,null,null,0,null,0,null,0,null,0,0]
[null,null,null,null,0,null,0,null,0,null,0,0]
[null,null,null,null,0,null,0,null,0,null,0,0]
[null,null,null,null,0,null,0,null,0,null,0,0]
[null,null,null,null,0,null,0,null,0,null,0,0]
[null,null,null,null,0,null,0,null,0,null,0,0]
[null,null,null,null,0,null,0,null,0,null,0,0]
[null,null,null,null,0,null,0,null,0,null,0,0]
[null,null,null,null,0,null,0,null,0,null,0,0]
[null,null,null,null,0,null,0,null,0,null,0,0]
[null,null,null,null,0,null,0,null,0,null,0,0]
[null,null,null,null,0,null,0,null,0,null,0,0]
[null,null,null,null,0,null,0,null,0,null,0,0]
[null,null,null,null,0,null,0,null,0,null,0,0]
[null,null,null,null,0,null,0,null,0,null,0,0]
[null,null,null,null,{"$f":"F814+H814+J814","v":0},null,0,null,0,null,0,0]
[null,null,null,null,0,null,{"$f":"F815*0","v":0},null,{"$f":"H815*0.09","v":0},null,{"$f":"J815*0.21","v":0},0]
[null,null,null,null,0,null,0,null,0,null,0,0]
[null,null,null,null,0,null,0,null,0,null,0,0]
[null,null,null,null,0,null,0,null,0,null,0,0]
[null,null,null,null,0,null,0,null,0,null,0,0]
[null,null,null,null,0,null,0,null,0,null,0,0]
[null,null,null,null,0,null,0,null,0,null,0,0]
[null,null,null,null,0,null,0,null,0,null,0,0]
[null,null,null,null,0,null,0,null,0,null,0,0]
[null,null,null,null,0,null,0,null,0,null,0,0]
[null,null,null,null,0,null,0,null,0,null,0,0]
[null,null,null,null,0,null,0,null,0,null,0,0]
[null,null,null,null,0,null,0,null,0,null,0,0]
[null,null,null,null,0,null,0,null,0,null,0,0]
[null,null,null,null,0,null,0,null,0,null,0,0]
[null,null,null,null,0,null,0,null,0,null,0,0]
[null,null,null,null,0,null,0,null,0,null,0,0]
[null,null,null,null,0,null,0,null,0,null,0,0]
[null,null,null,null,0,null,0,null,0,null,0,{"$f":"SUM(F833:K833)","v":0}]
[null,null,null,null,0,null,0,null,0,null,0,0]
[null,null,null,null,0,null,0,null,0,null,0,0]
[null,null,null,null,0,null,0,null,0,null,0,0]
[null,null,null,null,0,null,0,null,0,null,0,0]
[null,null,null,null,0,null,0,null,0,null,0,0]
[null,null,null,null,0,null,0,null,0,null,0,0]
[null,null,null,null,0,null,0,null,0,null,0,0]
[null,null,null,null,0,null,0,null,0,null,0,0]
[null,null,null,null,0,null,0,null,0,null,0,0]
[null,null,null,null,0,null,0,null,0,null,0,0]
[null,null,null,null,0,null,0,null,0,null,0,0]
[null,null,null,null,0,null,0,null,0,null,0,0]
[null,null,null,null,0,null,0,null,0,null,0,0]
[null,null,null,null,0,null,0,null,0,null,0,0]
[null,null,null,null,0,null,0,null,0,null,0,0]
[null,null,null,null,0,null,0,null,0,null,0,0]
[null,null,null,null,0,null,0,null,0,null,0,0]
[null,null,null,null,0,null,0,null,0,null,0,0]
[null,null,null,null,0,null,0,null,0,null,0,0]
[null,null,null,null,0,null,0,null,0,null,0,0]
[null,null,null,null,0,null,0,null,0,null,0,0]
[null,null,null,null,0,null,0,null,0,null,0,0]
[null,null,null,null,0,null,0,null,0,null,0,0]
[null,null,null,null,0,null,0,null,0,null,0,0]
[null,null,null,null,0,null,0,null,0,null,0,0]
[null,null,null,null,0,null,0,null,0,null,0,0]
[null,null,null,null,0,null,0,null,0,null,0,0]
[null,null,null,null,0,null,0,null,0,null,0,0]
[null,null,null,null,0,null,0,null,0,null,0,0]
[null,null,null,null,0,null,0,null,0,null,0,0]
[null,null,null,null,0,null,0,null,0,null,0,0]
[null,null,null,null,0,null,0,null,0,null,0,0]
[null,null,null,null,0,null,0,null,0,null,0,0]
[null,null,null,null,0,null,0,null,0,null,0,0]
[null,null,null,null,0,null,0,null,0,null,0,0]
[null,null,null,null,0,null,0,null,0,null,0,0]
[null,null,null,null,0,null,0,null,0,null,0,0]
[null,null,null,null,0,null,0,null,0,null,0,0]
[null,null,null,null,0,null,0,null,0,null,0,0]
[null,null,null,null,0,null,0,null,0,null,0,0]
[null,null,null,null,0,null,0,null,0,null,0,0]
[null,null,null,null,0,null,0,null,0,null,0,0]
[null,null,null,null,0,null,0,null,0,null,0,0]
[null,null,null,null,0,null,0,null,0,null,0,0]
[null,null,null,null,{"$f":"F878+H878+J878","v":0},null,0,null,0,null,0,0]
[null,null,null,null,0,null,{"$f":"F879*0","v":0},null,{"$f":"H879*0.09","v":0},null,{"$f":"J879*0.21","v":0},0]
[null,null,null,null,0,null,0,null,0,null,0,0]
[null,null,null,null,0,null,0,null,0,null,0,0]
[null,null,null,null,0,null,0,null,0,null,0,0]
[null,null,null,null,0,null,0,null,0,null,0,0]
[null,null,null,null,0,null,0,null,0,null,0,0]
[null,null,null,null,0,null,0,null,0,null,0,0]
[null,null,null,null,0,null,0,null,0,null,0,0]
[null,null,null,null,0,null,0,null,0,null,0,0]
[null,null,null,null,0,null,0,null,0,null,0,0]
[null,null,null,null,0,null,0,null,0,null,0,0]
[null,null,null,null,0,null,0,null,0,null,0,0]
[null,null,null,null,0,null,0,null,0,null,0,0]
[null,null,null,null,0,null,0,null,0,null,0,0]
[null,null,null,null,0,null,0,null,0,null,0,0]
[null,null,null,null,0,null,0,null,0,null,0,0]
[null,null,null,null,0,null,0,null,0,null,0,0]
[null,null,null,null,0,null,0,null,0,null,0,0]
[null,null,null,null,0,null,0,null,0,null,0,{"$f":"SUM(F897:K897)","v":0}]
[null,null,null,null,0,null,0,null,0,null,0,0]
[null,null,null,null,0,null,0,null,0,null,0,0]
[null,null,null,null,0,null,0,null,0,null,0,0]
[null,null,null,null,0,null,0,null,0,null,0,0]
[null,null,null,null,0,null,0,null,0,null,0,0]
[null,null,null,null,0,null,0,null,0,null,0,0]
[null,null,null,null,0,null,0,null,0,null,0,0]
[null,null,null,null,0,null,0,null,0,null,0,0]
[null,null,null,null,0,null,0,null,0,null,0,0]
[null,null,null,null,0,null,0,null,0,null,0,0]
[null,null,null,null,0,null,0,null,0,null,0,0]
[null,null,null,null,0,null,0,null,0,null,0,0]
[null,null,null,null,0,null,0,null,0,null,0,0]
[null,null,null,null,0,null,0,null,0,null,0,0]
[null,null,null,null,0,null,0,null,0,null,0,0]
[null,null,null,null,0,null,0,null,0,null,0,0]
[null,null,null,null,0,null,0,null,0,null,0,0]
[null,null,null,null,0,null,0,null,0,null,0,0]
[null,null,null,null,0,null,0,null,0,null,0,0]
[null,null,null,null,0,null,0,null,0,null,0,0]
[null,null,null,null,0,null,0,null,0,null,0,0]
[null,null,null,null,0,null,0,null,0,null,0,0]
[null,null,null,null,0,null,0,null,0,null,0,0]
[null,null,null,null,0,null,0,null,0,null,0,0]
[null,null,null,null,0,null,0,null,0,null,0,0]
[null,null,null,null,0,null,0,null,0,null,0,0]
[null,null,null,null,0,null,0,null,0,null,0,0]
[null,null,null,null,0,null,0,null,0,null,0,0]
[null,null,null,null,0,null,0,null,0,null,0,0]
[null,null,null,null,0,null,0,null,0,null,0,0]
[null,null,null,null,0,null,0,null,0,null,0,0]
[null,null,null,null,0,null,0,null,0,null,0,0]
[null,null,null,null,0,null,0,null,0,null,0,0]
[null,null,null,null,0,null,0,null,0,null,0,0]
[null,null,null,null,0,null,0,null,0,null,0,0]
[null,null,null,null,0,null,0,null,0,null,0,0]
[null,null,null,null,0,null,0,null,0,null,0,0]
[null,null,null,null,0,null,0,null,0,null,0,0]
[null,null,null,null,0,null,0,null,0,null,0,0]
[null,null,null,null,0,null,0,null,0,null,0,0]
[null,null,null,null,0,null,0,null,0,null,0,0]
[null,null,null,null,0,null,0,null,0,null,0,0]
[null,null,null,null,0,null,0,null,0,null,0,0]
[null,null,null,null,0,null,0,null,0,null,0,0]
[null,null,null,null,{"$f":"F942+H942+J942","v":0},null,0,null,0,null,0,0]
[null,null,null,null,0,null,{"$f":"F943*0","v":0},null,{"$f":"H943*0.09","v":0},null,{"$f":"J943*0.21","v":0},0]
[null,null,null,null,0,null,0,null,0,null,0,0]
[null,null,null,null,0,null,0,null,0,null,0,0]
[null,null,null,null,0,null,0,null,0,null,0,0]
[null,null,null,null,0,null,0,null,0,null,0,0]
[null,null,null,null,0,null,0,null,0,null,0,0]
[null,null,null,null,0,null,0,null,0,null,0,0]
[null,null,null,null,0,null,0,null,0,null,0,0]
[null,null,null,null,0,null,0,null,0,null,0,0]
[null,null,null,null,0,null,0,null,0,null,0,0]
[null,null,null,null,0,null,0,null,0,null,0,0]
[null,null,null,null,0,null,0,null,0,null,0,0]
[null,null,null,null,0,null,0,null,0,null,0,0]
[null,null,null,null,0,null,0,null,0,null,0,0]
[null,null,null,null,0,null,0,null,0,null,0,0]
[null,null,null,null,0,null,0,null,0,null,0,0]
[null,null,null,null,0,null,0,null,0,null,0,0]
[null,null,null,null,0,null,0,null,0,null,0,0]
[null,null,null,null,0,null,0,null,0,null,0,{"$f":"SUM(F961:K961)","v":0}]
[null,null,null,null,0,null,0,null,0,null,0,0]
[null,null,null,null,0,null,0,null,0,null,0,0]
[null,null,null,null,0,null,0,null,0,null,0,0]
[null,null,null,null,0,null,0,null,0,null,0,0]
[null,null,null,null,0,null,0,null,0,null,0,0]
[null,null,null,null,0,null,0,null,0,null,0,0]
[null,null,null,null,0,null,0,null,0,null,0,0]
[null,null,null,null,0,null,0,null,0,null,0,0]
[null,null,null,null,0,null,0,null,0,null,0,0]
[null,null,null,null,0,null,0,null,0,null,0,0]
[null,null,null,null,0,null,0,null,0,null,0,0]
[null,null,null,null,0,null,0,null,0,null,0,0]
[null,null,null,null,0,null,0,null,0,null,0,0]
[null,null,null,null,0,null,0,null,0,null,0,0]
[null,null,null,null,0,null,0,null,0,null,0,0]
[null,null,null,null,0,null,0,null,0,null,0,0]
[null,null,null,null,0,null,0,null,0,null,0,0]
[null,null,null,null,0,null,0,null,0,null,0,0]
[null,null,null,null,0,null,0,null,0,null,0,0]
[null,null,null,null,0,null,0,null,0,null,0,0]
[null,null,null,null,0,null,0,null,0,null,0,0]
[null,null,null,null,0,null,0,null,0,null,0,0]
[null,null,null,null,0,null,0,null,0,null,0,0]
[null,null,null,null,0,null,0,null,0,null,0,0]
[null,null,null,null,0,null,0,null,0,null,0,0]
[null,null,null,null,0,null,0,null,0,null,0,0]
[null,null,null,null,0,null,0,null,0,null,0,0]
[null,null,null,null,0,null,0,null,0,null,0,0]
[null,null,null,null,0,null,0,null,0,null,0,0]
[null,null,null,null,0,null,0,null,0,null,0,0]
[null,null,null,null,0,null,0,null,0,null,0,0]
[null,null,null,null,0,null,0,null,0,null,0,0]
[null,null,null,null,0,null,0,null,0,null,0,0]
[null,null,null,null,0,null,0,null,0,null,0,0]
[null,null,null,null,0,null,0,null,0,null,0,0]
[null,null,null,null,0,null,0,null,0,null,0,0]
[null,null,null,null,0,null,0,null,0,null,0,0]
[null,null,null,null,0,null,0,null,0,null,0,0]
[null,null,null,null,0,null,0,null,0,null,0,0]
[null,null,null,null,0,null,0,null,0,null,0,0]
[null,null,null,null,0,null,0,null,0,null,0,0]
[null,null,null,null,0,null,0,null,0,null,0,0]
[null,null,null,null,0,null,0,null,0,null,0,0]
[null,null,null,null,0,null,0,null,0,null,0,0]
[null,null,null,null,{"$f":"F1006+H1006+J1006","v":0},null,0,null,0,null,0,0]
[null,null,null,null,0,null,{"$f":"F1007*0","v":0},null,{"$f":"H1007*0.09","v":0},null,{"$f":"J1007*0.21","v":0},0]
[null,null,null,null,0,null,0,null,0,null,0,0]
[null,null,null,null,0,null,0,null,0,null,0,0]
[null,null,null,null,0,null,0,null,0,null,0,0]
[null,null,null,null,0,null,0,null,0,null,0,0]
[null,null,null,null,0,null,0,null,0,null,0,0]
[null,null,null,null,0,null,0,null,0,null,0,0]
[null,null,null,null,0,null,0,null,0,null,0,0]
[null,null,null,null,0,null,0,null,0,null,0,0]
[null,null,null,null,0,null,0,null,0,null,0,0]
[null,null,null,null,0,null,0,null,0,null,0,0]
[null,null,null,null,0,null,0,null,0,null,0,0]
[null,null,null,null,0,null,0,null,0,null,0,0]
[null,null,null,null,0,null,0,null,0,null,0,0]
[null,null,null,null,0,null,0,null,0,null,0,0]
[null,null,null,null,0,null,0,null,0,null,0,0]
[null,null,null,null,0,null,0,null,0,null,0,0]
[null,null,null,null,0,null,0,null,0,null,0,0]
[null,null,null,null,0,null,0,null,0,null,0,{"$f":"SUM(F1025:K1025)","v":0}]
[null,null,null,null,0,null,0,null,0,null,0,0]
[null,null,null,null,0,null,0,null,0,null,0,0]
[null,null,null,null,0,null,0,null,0,null,0,0]
[null,null,null,null,0,null,0,null,0,null,0,0]
[null,null,null,null,0,null,0,null,0,null,0,0]
[null,null,null,null,0,null,0,null,0,null,0,0]
[null,null,null,null,0,null,0,null,0,null,0,0]
[null,null,null,null,0,null,0,null,0,null,0,0]
[null,null,null,null,0,null,0,null,0,null,0,0]
[null,null,null,null,0,null,0,null,0,null,0,0]
[null,null,null,null,0,null,0,null,0,null,0,0]
[null,null,null,null,0,null,0,null,0,null,0,0]
[null,null,null,null,0,null,0,null,0,null,0,0]
[null,null,null,null,0,null,0,null,0,null,0,0]
[null,null,null,null,0,null,0,null,0,null,0,0]
[null,null,null,null,0,null,0,null,0,null,0,0]
[null,null,null,null,0,null,0,null,0,null,0,0]
[null,null,null,null,0,null,0,null,0,null,0,0]
[null,null,null,null,0,null,0,null,0,null,0,0]
[null,null,null,null,0,null,0,null,0,null,0,0]
[null,null,null,null,0,null,0,null,0,null,0,0]
[null,null,null,null,0,null,0,null,0,null,0,0]
[null,null,null,null,0,null,0,null,0,null,0,0]
[null,null,null,null,0,null,0,null,0,null,0,0]
[null,null,null,null,0,null,0,null,0,null,0,0]
[null,null,null,null,0,null,0,null,0,null,0,0]
[null,null,null,null,0,null,0,null,0,null,0,0]
[null,null,null,null,0,null,0,null,0,null,0,0]
[null,null,null,null,0,null,0,null,0,null,0,0]
[null,null,null,null,0,null,0,null,0,null,0,0]
[null,null,null,null,0,null,0,null,0,null,0,0]
[null,null,null,null,0,null,0,null,0,null,0,0]
[null,null,null,null,0,null,0,null,0,null,0,0]
[null,null,null,null,0,null,0,null,0,null,0,0]
[null,null,null,null,0,null,0,null,0,null,0,0]
[null,null,null,null,0,null,0,null,0,null,0,0]
[null,null,null,null,0,null,0,null,0,null,0,0]
[null,null,null,null,0,null,0,null,0,null,0,0]
[null,null,null,null,0,null,0,null,0,null,0,0]
[null,null,null,null,0,null,0,null,0,null,0,0]
[null,null,null,null,0,null,0,null,0,null,0,0]
[null,null,null,null,0,null,0,null,0,null,0,0]
[null,null,null,null,0,null,0,null,0,null,0,0]
[null,null,null,null,0,null,0,null,0,null,0,0]
[null,null,null,null,{"$f":"F1070+H1070+J1070","v":0},null,0,null,0,null,0,0]
[null,null,null,null,0,null,{"$f":"F1071*0","v":0},null,{"$f":"H1071*0.09","v":0},null,{"$f":"J1071*0.21","v":0},0]
[null,null,null,null,0,null,0,null,0,null,0,0]
[null,null,null,null,0,null,0,null,0,null,0,0]
[null,null,null,null,0,null,0,null,0,null,0,0]
[null,null,null,null,0,null,0,null,0,null,0,0]
[null,null,null,null,0,null,0,null,0,null,0,0]
[null,null,null,null,0,null,0,null,0,null,0,0]
[null,null,null,null,0,null,0,null,0,null,0,0]
[null,null,null,null,0,null,0,null,0,null,0,0]
[null,null,null,null,0,null,0,null,0,null,0,0]
[null,null,null,null,0,null,0,null,0,null,0,0]
[null,null,null,null,0,null,0,null,0,null,0,0]
[null,null,null,null,0,null,0,null,0,null,0,0]
[null,null,null,null,0,null,0,null,0,null,0,0]
[null,null,null,null,0,null,0,null,0,null,0,0]
[null,null,null,null,0,null,0,null,0,null,0,0]
[null,null,null,null,0,null,0,null,0,null,0,0]
[null,null,null,null,0,null,0,null,0,null,0,0]
[null,null,null,null,0,null,0,null,0,null,0,{"$f":"SUM(F1089:K1089)","v":0}]
[null,null,null,null,0,null,0,null,0,null,0,0]
[null,null,null,null,0,null,0,null,0,null,0,0]
[null,null,null,null,0,null,0,null,0,null,0,0]
[null,null,null,null,0,null,0,null,0,null,0,0]
[null,null,null,null,0,null,0,null,0,null,0,0]
[null,null,null,null,0,null,0,null,0,null,0,0]
[null,null,null,null,0,null,0,null,0,null,0,0]
[null,null,null,null,0,null,0,null,0,null,0,0]
[null,null,null,null,0,null,0,null,0,null,0,0]
[null,null,null,null,0,null,0,null,0,null,0,0]
[null,null,null,null,0,null,0,null,0,null,0,0]
[null,null,null,null,0,null,0,null,0,null,0,0]
[null,null,null,null,0,null,0,null,0,null,0,0]
[null,null,null,null,0,null,0,null,0,null,0,0]
[null,null,null,null,0,null,0,null,0,null,0,0]
[null,null,null,null,0,null,0,null,0,null,0,0]
[null,null,null,null,0,null,0,null,0,null,0,0]
[null,null,null,null,0,null,0,null,0,null,0,0]
[null,null,null,null,0,null,0,null,0,null,0,0]
[null,null,null,null,0,null,0,null,0,null,0,0]
[null,null,null,null,0,null,0,null,0,null,0,0]
[null,null,null,null,0,null,0,null,0,null,0,0]
[null,null,null,null,0,null,0,null,0,null,0,0]
[null,null,null,null,0,null,0,null,0,null,0,0]
[null,null,null,null,0,null,0,null,0,null,0,0]
[null,null,null,null,0,null,0,null,0,null,0,0]
[null,null,null,null,0,null,0,null,0,null,0,0]
[null,null,null,null,0,null,0,null,0,null,0,0]
[null,null,null,null,0,null,0,null,0,null,0,0]
[null,null,null,null,0,null,0,null,0,null,0,0]
[null,null,null,null,0,null,0,null,0,null,0,0]
[null,null,null,null,0,null,0,null,0,null,0,0]
[null,null,null,null,0,null,0,null,0,null,0,0]
[null,null,null,null,0,null,0,null,0,null,0,0]
[null,null,null,null,0,null,0,null,0,null,0,0]
[null,null,null,null,0,null,0,null,0,null,0,0]
[null,null,null,null,0,null,0,null,0,null,0,0]
[null,null,null,null,0,null,0,null,0,null,0,0]
[null,null,null,null,0,null,0,null,0,null,0,0]
[null,null,null,null,0,null,0,null,0,null,0,0]
[null,null,null,null,0,null,0,null,0,null,0,0]
[null,null,null,null,0,null,0,null,0,null,0,0]
[null,null,null,null,0,null,0,null,0,null,0,0]
[null,null,null,null,0,null,0,null,0,null,0,0]
[null,null,null,null,{"$f":"F1134+H1134+J1134","v":0},null,0,null,0,null,0,0]
[null,null,null,null,0,null,{"$f":"F1135*0","v":0},null,{"$f":"H1135*0.09","v":0},null,{"$f":"J1135*0.21","v":0},0]
[null,null,null,null,0,null,0,null,0,null,0,0]
[null,null,null,null,0,null,0,null,0,null,0,0]
[null,null,null,null,0,null,0,null,0,null,0,0]
[null,null,null,null,0,null,0,null,0,null,0,0]
[null,null,null,null,0,null,0,null,0,null,0,0]
[null,null,null,null,0,null,0,null,0,null,0,0]
[null,null,null,null,0,null,0,null,0,null,0,0]
[null,null,null,null,0,null,0,null,0,null,0,0]
[null,null,null,null,0,null,0,null,0,null,0,0]
[null,null,null,null,0,null,0,null,0,null,0,0]
[null,null,null,null,0,null,0,null,0,null,0,0]
[null,null,null,null,0,null,0,null,0,null,0,0]
[null,null,null,null,0,null,0,null,0,null,0,0]
[null,null,null,null,0,null,0,null,0,null,0,0]
[null,null,null,null,0,null,0,null,0,null,0,0]
[null,null,null,null,0,null,0,null,0,null,0,0]
[null,null,null,null,0,null,0,null,0,null,0,0]
[null,null,null,null,0,null,0,null,0,null,0,{"$f":"SUM(F1153:K1153)","v":0}]
[null,null,null,null,0,null,0,null,0,null,0,0]
[null,null,null,null,0,null,0,null,0,null,0,0]
[null,null,null,null,0,null,0,null,0,null,0,0]
[null,null,null,null,0,null,0,null,0,null,0,0]
[null,null,null,null,0,null,0,null,0,null,0,0]
[null,null,null,null,0,null,0,null,0,null,0,0]
[null,null,null,null,0,null,0,null,0,null,0,0]
[null,null,null,null,0,null,0,null,0,null,0,0]
[null,null,null,null,0,null,0,null,0,null,0,0]
[null,null,null,null,0,null,0,null,0,null,0,0]
[null,null,null,null,0,null,0,null,0,null,0,0]
[null,null,null,null,0,null,0,null,0,null,0,0]
[null,null,null,null,0,null,0,null,0,null,0,0]
[null,null,null,null,0,null,0,null,0,null,0,0]
[null,null,null,null,0,null,0,null,0,null,0,0]
[null,null,null,null,0,null,0,null,0,null,0,0]
[null,null,null,null,0,null,0,null,0,null,0,0]
[null,null,null,null,0,null,0,null,0,null,0,0]
[null,null,null,null,0,null,0,null,0,null,0,0]
[null,null,null,null,0,null,0,null,0,null,0,0]
[null,null,null,null,0,null,0,null,0,null,0,0]
[null,null,null,null,0,null,0,null,0,null,0,0]
[null,null,null,null,0,null,0,null,0,null,0,0]
[null,null,null,null,0,null,0,null,0,null,0,0]
[null,null,null,null,0,null,0,null,0,null,0,0]
[null,null,null,null,0,null,0,null,0,null,0,0]
[null,null,null,null,0,null,0,null,0,null,0,0]
[null,null,null,null,0,null,0,null,0,null,0,0]
[null,null,null,null,0,null,0,null,0,null,0,0]
[null,null,null,null,0,null,0,null,0,null,0,0]
[null,null,null,null,0,null,0,null,0,null,0,0]
[null,null,null,null,0,null,0,null,0,null,0,0]
[null,null,null,null,0,null,0,null,0,null,0,0]
[null,null,null,null,0,null,0,null,0,null,0,0]
[null,null,null,null,0,null,0,null,0,null,0,0]
[null,null,null,null,0,null,0,null,0,null,0,0]
[null,null,null,null,0,null,0,null,0,null,0,0]
[null,null,null,null,0,null,0,null,0,null,0,0]
[null,null,null,null,0,null,0,null,0,null,0,0]
[null,null,null,null,0,null,0,null,0,null,0,0]
[null,null,null,null,0,null,0,null,0,null,0,0]
[null,null,null,null,0,null,0,null,0,null,0,0]
[null,null,null,null,0,null,0,null,0,null,0,0]
[null,null,null,null,0,null,0,null,0,null,0,0]
[null,null,null,null,{"$f":"F1198+H1198+J1198","v":0},null,0,null,0,null,0,0]
[null,null,null,null,0,null,{"$f":"F1199*0","v":0},null,{"$f":"H1199*0.09","v":0},null,{"$f":"J1199*0.21","v":0},0]
[null,null,null,null,0,null,0,null,0,null,0,0]
[null,null,null,null,0,null,0,null,0,null,0,0]
[null,null,null,null,0,null,0,null,0,null,0,0]
[null,null,null,null,0,null,0,null,0,null,0,0]
[null,null,null,null,0,null,0,null,0,null,0,0]
[null,null,null,null,0,null,0,null,0,null,0,0]
[null,null,null,null,0,null,0,null,0,null,0,0]
[null,null,null,null,0,null,0,null,0,null,0,0]
[null,null,null,null,0,null,0,null,0,null,0,0]
[null,null,null,null,0,null,0,null,0,null,0,0]
[null,null,null,null,0,null,0,null,0,null,0,0]
[null,null,null,null,0,null,0,null,0,null,0,0]
[null,null,null,null,0,null,0,null,0,null,0,0]
[null,null,null,null,0,null,0,null,0,null,0,0]
[null,null,null,null,0,null,0,null,0,null,0,0]
[null,null,null,null,0,null,0,null,0,null,0,0]
[null,null,null,null,0,null,0,null,0,null,0,0]
[null,null,null,null,0,null,0,null,0,null,0,{"$f":"SUM(F1217:K1217)","v":0}]
[null,null,null,null,0,null,0,null,0,null,0,0]
[null,null,null,null,0,null,0,null,0,null,0,0]
[null,null,null,null,0,null,0,null,0,null,0,0]
[null,null,null,null,0,null,0,null,0,null,0,0]
[null,null,null,null,0,null,0,null,0,null,0,0]
[null,null,null,null,0,null,0,null,0,null,0,0]
[null,null,null,null,0,null,0,null,0,null,0,0]
[null,null,null,null,0,null,0,null,0,null,0,0]
[null,null,null,null,0,null,0,null,0,null,0,0]
[null,null,null,null,0,null,0,null,0,null,0,0]
[null,null,null,null,0,null,0,null,0,null,0,0]
[null,null,null,null,0,null,0,null,0,null,0,0]
[null,null,null,null,0,null,0,null,0,null,0,0]
[null,null,null,null,0,null,0,null,0,null,0,0]
[null,null,null,null,0,null,0,null,0,null,0,0]
[null,null,null,null,0,null,0,null,0,null,0,0]
[null,null,null,null,0,null,0,null,0,null,0,0]
[null,null,null,null,0,null,0,null,0,null,0,0]
[null,null,null,null,0,null,0,null,0,null,0,0]
[null,null,null,null,0,null,0,null,0,null,0,0]
[null,null,null,null,0,null,0,null,0,null,0,0]
[null,null,null,null,0,null,0,null,0,null,0,0]
[null,null,null,null,0,null,0,null,0,null,0,0]
[null,null,null,null,0,null,0,null,0,null,0,0]
[null,null,null,null,0,null,0,null,0,null,0,0]
[null,null,null,null,0,null,0,null,0,null,0,0]
[null,null,null,null,0,null,0,null,0,null,0,0]
[null,null,null,null,0,null,0,null,0,null,0,0]
[null,null,null,null,0,null,0,null,0,null,0,0]
[null,null,null,null,0,null,0,null,0,null,0,0]
[null,null,null,null,0,null,0,null,0,null,0,0]
[null,null,null,null,0,null,0,null,0,null,0,0]
[null,null,null,null,0,null,0,null,0,null,0,0]
[null,null,null,null,0,null,0,null,0,null,0,0]
[null,null,null,null,0,null,0,null,0,null,0,0]
[null,null,null,null,0,null,0,null,0,null,0,0]
[null,null,null,null,0,null,0,null,0,null,0,0]
[null,null,null,null,0,null,0,null,0,null,0,0]
[null,null,null,null,0,null,0,null,0,null,0,0]
[null,null,null,null,0,null,0,null,0,null,0,0]
[null,null,null,null,0,null,0,null,0,null,0,0]
[null,null,null,null,0,null,0,null,0,null,0,0]
[null,null,null,null,0,null,0,null,0,null,0,0]
[null,null,null,null,0,null,0,null,0,null,0,0]
[null,null,null,null,{"$f":"F1262+H1262+J1262","v":0},null,0,null,0,null,0,0]
[null,null,null,null,0,null,{"$f":"F1263*0","v":0},null,{"$f":"H1263*0.09","v":0},null,{"$f":"J1263*0.21","v":0},0]
[null,null,null,null,0,null,0,null,0,null,0,0]
[null,null,null,null,0,null,0,null,0,null,0,0]
[null,null,null,null,0,null,0,null,0,null,0,0]
[null,null,null,null,0,null,0,null,0,null,0,0]
[null,null,null,null,0,null,0,null,0,null,0,0]
[null,null,null,null,0,null,0,null,0,null,0,0]
[null,null,null,null,0,null,0,null,0,null,0,0]
[null,null,null,null,0,null,0,null,0,null,0,0]
[null,null,null,null,0,null,0,null,0,null,0,0]
[null,null,null,null,0,null,0,null,0,null,0,0]
[null,null,null,null,0,null,0,null,0,null,0,0]
[null,null,null,null,0,null,0,null,0,null,0,0]
[null,null,null,null,0,null,0,null,0,null,0,0]
[null,null,null,null,0,null,0,null,0,null,0,0]
[null,null,null,null,0,null,0,null,0,null,0,0]
[null,null,null,null,0,null,0,null,0,null,0,0]
[null,null,null,null,0,null,0,null,0,null,0,0]
[null,null,null,null,0,null,0,null,0,null,0,{"$f":"SUM(F1281:K1281)","v":0}]
[null,null,null,null,0,null,0,null,0,null,0,0]
[null,null,null,null,0,null,0,null,0,null,0,0]
[null,null,null,null,0,null,0,null,0,null,0,0]
[null,null,null,null,0,null,0,null,0,null,0,0]
[null,null,null,null,0,null,0,null,0,null,0,0]
[null,null,null,null,0,null,0,null,0,null,0,0]
[null,null,null,null,0,null,0,null,0,null,0,0]
[null,null,null,null,0,null,0,null,0,null,0,0]
[null,null,null,null,0,null,0,null,0,null,0,0]
[null,null,null,null,0,null,0,null,0,null,0,0]
[null,null,null,null,0,null,0,null,0,null,0,0]
[null,null,null,null,0,null,0,null,0,null,0,0]
[null,null,null,null,0,null,0,null,0,null,0,0]
[null,null,null,null,0,null,0,null,0,null,0,0]
[null,null,null,null,0,null,0,null,0,null,0,0]
[null,null,null,null,0,null,0,null,0,null,0,0]
[null,null,null,null,0,null,0,null,0,null,0,0]
[null,null,null,null,0,null,0,null,0,null,0,0]
[null,null,null,null,0,null,0,null,0,null,0,0]
[null,null,null,null,0,null,0,null,0,null,0,0]
[null,null,null,null,0,null,0,null,0,null,0,0]
[null,null,null,null,0,null,0,null,0,null,0,0]
[null,null,null,null,0,null,0,null,0,null,0,0]
[null,null,null,null,0,null,0,null,0,null,0,0]
[null,null,null,null,0,null,0,null,0,null,0,0]
[null,null,null,null,0,null,0,null,0,null,0,0]
[null,null,null,null,0,null,0,null,0,null,0,0]
[null,null,null,null,0,null,0,null,0,null,0,0]
[null,null,null,null,0,null,0,null,0,null,0,0]
[null,null,null,null,0,null,0,null,0,null,0,0]
[null,null,null,null,0,null,0,null,0,null,0,0]
[null,null,null,null,0,null,0,null,0,null,0,0]
[null,null,null,null,0,null,0,null,0,null,0,0]
[null,null,null,null,0,null,0,null,0,null,0,0]
[null,null,null,null,0,null,0,null,0,null,0,0]
[null,null,null,null,0,null,0,null,0,null,0,0]
[null,null,null,null,0,null,0,null,0,null,0,0]
[null,null,null,null,0,null,0,null,0,null,0,0]
[null,null,null,null,0,null,0,null,0,null,0,0]
[null,null,null,null,0,null,0,null,0,null,0,0]
[null,null,null,null,0,null,0,null,0,null,0,0]
[null,null,null,null,0,null,0,null,0,null,0,0]
[null,null,null,null,0,null,0,null,0,null,0,0]
[null,null,null,null,0,null,0,null,0,null,0,0]
[null,null,null,null,{"$f":"F1326+H1326+J1326","v":0},null,0,null,0,null,0,0]
[null,null,null,null,0,null,{"$f":"F1327*0","v":0},null,{"$f":"H1327*0.09","v":0},null,{"$f":"J1327*0.21","v":0},0]
[null,null,null,null,0,null,0,null,0,null,0,0]
[null,null,null,null,0,null,0,null,0,null,0,0]
[null,null,null,null,0,null,0,null,0,null,0,0]
[null,null,null,null,0,null,0,null,0,null,0,0]
[null,null,null,null,0,null,0,null,0,null,0,0]
[null,null,null,null,0,null,0,null,0,null,0,0]
[null,null,null,null,0,null,0,null,0,null,0,0]
[null,null,null,null,0,null,0,null,0,null,0,0]
[null,null,null,null,0,null,0,null,0,null,0,0]
[null,null,null,null,0,null,0,null,0,null,0,0]
[null,null,null,null,0,null,0,null,0,null,0,0]
[null,null,null,null,0,null,0,null,0,null,0,0]
[null,null,null,null,0,null,0,null,0,null,0,0]
[null,null,null,null,0,null,0,null,0,null,0,0]
[null,null,null,null,0,null,0,null,0,null,0,0]
[null,null,null,null,0,null,0,null,0,null,0,0]
[null,null,null,null,0,null,0,null,0,null,0,0]
[null,null,null,null,0,null,0,null,0,null,0,{"$f":"SUM(F1345:K1345)","v":0}]
[null,null,null,null,0,null,0,null,0,null,0,0]
[null,null,null,null,0,null,0,null,0,null,0,0]
[null,null,null,null,0,null,0,null,0,null,0,0]
[null,null,null,null,0,null,0,null,0,null,0,0]
[null,null,null,null,0,null,0,null,0,null,0,0]
[null,null,null,null,0,null,0,null,0,null,0,0]
[null,null,null,null,0,null,0,null,0,null,0,0]
[null,null,null,null,0,null,0,null,0,null,0,0]
[null,null,null,null,0,null,0,null,0,null,0,0]
[null,null,null,null,0,null,0,null,0,null,0,0]
[null,null,null,null,0,null,0,null,0,null,0,0]
[null,null,null,null,0,null,0,null,0,null,0,0]
[null,null,null,null,0,null,0,null,0,null,0,0]
[null,null,null,null,0,null,0,null,0,null,0,0]
[null,null,null,null,0,null,0,null,0,null,0,0]
[null,null,null,null,0,null,0,null,0,null,0,0]
[null,null,null,null,0,null,0,null,0,null,0,0]
[null,null,null,null,0,null,0,null,0,null,0,0]
[null,null,null,null,0,null,0,null,0,null,0,0]
[null,null,null,null,0,null,0,null,0,null,0,0]
[null,null,null,null,0,null,0,null,0,null,0,0]
[null,null,null,null,0,null,0,null,0,null,0,0]
[null,null,null,null,0,null,0,null,0,null,0,0]
[null,null,null,null,0,null,0,null,0,null,0,0]
[null,null,null,null,0,null,0,null,0,null,0,0]
[null,null,null,null,0,null,0,null,0,null,0,0]
[null,null,null,null,0,null,0,null,0,null,0,0]
[null,null,null,null,0,null,0,null,0,null,0,0]
[null,null,null,null,0,null,0,null,0,null,0,0]
[null,null,null,null,0,null,0,null,0,null,0,0]
[null,null,null,null,0,null,0,null,0,null,0,0]
[null,null,null,null,0,null,0,null,0,null,0,0]
[null,null,null,null,0,null,0,null,0,null,0,0]
[null,null,null,null,0,null,0,null,0,null,0,0]
[null,null,null,null,0,null,0,null,0,null,0,0]
[null,null,null,null,0,null,0,null,0,null,0,0]
[null,null,null,null,0,null,0,null,0,null,0,0]
[null,null,null,null,0,null,0,null,0,null,0,0]
[null,null,null,null,0,null,0,null,0,null,0,0]
[null,null,null,null,0,null,0,null,0,null,0,0]
[null,null,null,null,0,null,0,null,0,null,0,0]
[null,null,null,null,0,null,0,null,0,null,0,0]
[null,null,null,null,0,null,0,null,0,null,0,0]
[null,null,null,null,0,null,0,null,0,null,0,0]
[null,null,null,null,{"$f":"F1390+H1390+J1390","v":0},null,0,null,0,null,0,0]
[null,null,null,null,0,null,{"$f":"F1391*0","v":0},null,{"$f":"H1391*0.09","v":0},null,{"$f":"J1391*0.21","v":0},0]
[null,null,null,null,0,null,0,null,0,null,0,0]
[null,null,null,null,0,null,0,null,0,null,0,0]
[null,null,null,null,0,null,0,null,0,null,0,0]
[null,null,null,null,0,null,0,null,0,null,0,0]
[null,null,null,null,0,null,0,null,0,null,0,0]
[null,null,null,null,0,null,0,null,0,null,0,0]
[null,null,null,null,0,null,0,null,0,null,0,0]
[null,null,null,null,0,null,0,null,0,null,0,0]
[null,null,null,null,0,null,0,null,0,null,0,0]
[null,null,null,null,0,null,0,null,0,null,0,0]
[null,null,null,null,0,null,0,null,0,null,0,0]
[null,null,null,null,0,null,0,null,0,null,0,0]
[null,null,null,null,0,null,0,null,0,null,0,0]
[null,null,null,null,0,null,0,null,0,null,0,0]
[null,null,null,null,0,null,0,null,0,null,0,0]
[null,null,null,null,0,null,0,null,0,null,0,0]
[null,null,null,null,0,null,0,null,0,null,0,0]
[null,null,null,null,0,null,0,null,0,null,0,{"$f":"SUM(F1409:K1409)","v":0}]
[null,null,null,null,0,null,0,null,0,null,0,0]
[null,null,null,null,0,null,0,null,0,null,0,0]
[null,null,null,null,0,null,0,null,0,null,0,0]
[null,null,null,null,0,null,0,null,0,null,0,0]
[null,null,null,null,0,null,0,null,0,null,0,0]
[null,null,null,null,0,null,0,null,0,null,0,0]
[null,null,null,null,0,null,0,null,0,null,0,0]
[null,null,null,null,0,null,0,null,0,null,0,0]
[null,null,null,null,0,null,0,null,0,null,0,0]
[null,null,null,null,0,null,0,null,0,null,0,0]
[null,null,null,null,0,null,0,null,0,null,0,0]
[null,null,null,null,0,null,0,null,0,null,0,0]
[null,null,null,null,0,null,0,null,0,null,0,0]
[null,null,null,null,0,null,0,null,0,null,0,0]
[null,null,null,null,0,null,0,null,0,null,0,0]
[null,null,null,null,0,null,0,null,0,null,0,0]
[null,null,null,null,0,null,0,null,0,null,0,0]
[null,null,null,null,0,null,0,null,0,null,0,0]
[null,null,null,null,0,null,0,null,0,null,0,0]
[null,null,null,null,0,null,0,null,0,null,0,0]
[null,null,null,null,0,null,0,null,0,null,0,0]
[null,null,null,null,0,null,0,null,0,null,0,0]
[null,null,null,null,0,null,0,null,0,null,0,0]
[null,null,null,null,0,null,0,null,0,null,0,0]
[null,null,null,null,0,null,0,null,0,null,0,0]
[null,null,null,null,0,null,0,null,0,null,0,0]
[null,null,null,null,0,null,0,null,0,null,0,0]
[null,null,null,null,0,null,0,null,0,null,0,0]
[null,null,null,null,0,null,0,null,0,null,0,0]
[null,null,null,null,0,null,0,null,0,null,0,0]
[null,null,null,null,0,null,0,null,0,null,0,0]
[null,null,null,null,0,null,0,null,0,null,0,0]
[null,null,null,null,0,null,0,null,0,null,0,0]
[null,null,null,null,0,null,0,null,0,null,0,0]
[null,null,null,null,0,null,0,null,0,null,0,0]
[null,null,null,null,0,null,0,null,0,null,0,0]
[null,null,null,null,0,null,0,null,0,null,0,0]
[null,null,null,null,0,null,0,null,0,null,0,0]
[null,null,null,null,0,null,0,null,0,null,0,0]
[null,null,null,null,0,null,0,null,0,null,0,0]
[null,null,null,null,0,null,0,null,0,null,0,0]
[null,null,null,null,0,null,0,null,0,null,0,0]
[null,null,null,null,0,null,0,null,0,null,0,0]
[null,null,null,null,0,null,0,null,0,null,0,0]
[null,null,null,null,{"$f":"F1454+H1454+J1454","v":0},null,0,null,0,null,0,0]
[null,null,null,null,0,null,{"$f":"F1455*0","v":0},null,{"$f":"H1455*0.09","v":0},null,{"$f":"J1455*0.21","v":0},0]
[null,null,null,null,0,null,0,null,0,null,0,0]
[null,null,null,null,0,null,0,null,0,null,0,0]
[null,null,null,null,0,null,0,null,0,null,0,0]
[null,null,null,null,0,null,0,null,0,null,0,0]
[null,null,null,null,0,null,0,null,0,null,0,0]
[null,null,null,null,0,null,0,null,0,null,0,0]
[null,null,null,null,0,null,0,null,0,null,0,0]
[null,null,null,null,0,null,0,null,0,null,0,0]
[null,null,null,null,0,null,0,null,0,null,0,0]
[null,null,null,null,0,null,0,null,0,null,0,0]
[null,null,null,null,0,null,0,null,0,null,0,0]
[null,null,null,null,0,null,0,null,0,null,0,0]
[null,null,null,null,0,null,0,null,0,null,0,0]
[null,null,null,null,0,null,0,null,0,null,0,0]
[null,null,null,null,0,null,0,null,0,null,0,0]
[null,null,null,null,0,null,0,null,0,null,0,0]
[null,null,null,null,0,null,0,null,0,null,0,0]
[null,null,null,null,0,null,0,null,0,null,0,{"$f":"SUM(F1473:K1473)","v":0}]
[null,null,null,null,0,null,0,null,0,null,0,0]
[null,null,null,null,0,null,0,null,0,null,0,0]
[null,null,null,null,0,null,0,null,0,null,0,0]
[null,null,null,null,0,null,0,null,0,null,0,0]
[null,null,null,null,0,null,0,null,0,null,0,0]
[null,null,null,null,0,null,0,null,0,null,0,0]
[null,null,null,null,0,null,0,null,0,null,0,0]
[null,null,null,null,0,null,0,null,0,null,0,0]
[null,null,null,null,0,null,0,null,0,null,0,0]

{"sheet":"Verkoopfactuur","index":2,"n_rows":44,"n_cols":29,"rows_kept":44,"cut":false,"hidden":false,"merged":[[38,0,38,9],[40,0,40,9],[41,0,41,9],[42,0,42,9],[43,0,43,9],[9,4,9,5],[10,4,10,5],[11,4,11,5],[12,4,12,5],[9,6,9,7],[13,4,13,5],[13,6,13,7],[12,6,12,7],[11,6,11,7],[10,6,10,7],[17,1,17,3],[28,1,28,3],[24,1,24,3],[25,1,25,3],[26,1,26,3],[27,1,27,3],[18,1,18,3],[21,1,21,3],[22,1,22,3],[23,1,23,3],[19,1,19,3],[20,1,20,3],[0,13,0,14],[35,8,35,9],[30,8,30,9],[29,8,29,9],[34,13,35,13],[26,13,26,14],[17,13,17,14],[17,7,17,8],[29,6,29,7],[30,6,30,7],[33,6,33,7],[34,6,34,7],[35,6,35,7],[31,6,31,7],[32,6,32,7],[0,5,0,9]]}
[null,null,null,null,null,{"$f":"O23","v":"Factuur"},null,null,null,null,null,null,null,{"$f":"IF(O25=\"Omzet EU\",\"Let op omzet EU, dus BTW verlegd!\",\"\")&IF(O25=\"Omzet buiten EU\",\"Let op omzet buiten EU, dus 0% BTW!\",\"\")","v":""}]
[]
[]
[{"$f":"IF(#REF!<#REF!,#REF!,\"\")","v":{"$error":"#REF!"}},null,null,null,null,null,null,null,null,null,null,null,null,"Stap 1"]
[{"$f":"IF(#REF!<#REF!,#REF!&\" \"&#REF!&\"\",\"\")","v":{"$error":"#REF!"}}]
[{"$f":"IF(#REF!<#REF!,#REF!,\"\")","v":{"$error":"#REF!"}}]
[{"$f":"IF(#REF!<#REF!,#REF!,\"\")","v":{"$error":"#REF!"}}]
[null,null,null,null,null,null,null,null,null,null,null,null,null,"Stap 2"]
[]
["Factuuradres:",{"$f":"VLOOKUP(G12,klantenlijst,3,0)&\" \"&VLOOKUP(G12,klantenlijst,2,0)","v":"H.G. Alberts"},null,null,"Datum:",null,{"$f":"O19","v":"2019-01-01"}]
[null,{"$f":"IF(#REF!<#REF!,VLOOKUP(G12,klantenlijst,4,0),\"\")","v":{"$error":"#REF!"}},null,null,"Factuurnr.:",null,{"$f":"O20","v":20190012}]
[null,{"$f":"IF(#REF!<#REF!,VLOOKUP(G12,klantenlijst,5,0),\"\")","v":{"$error":"#REF!"}},null,null,"Debiteuren nr.:",null,{"$f":"O21","v":2}]
[null,{"$f":"IF(#REF!<#REF!,VLOOKUP(G12,klantenlijst,6,0),\"\")","v":{"$error":"#REF!"}},null,null,{"$f":"IF(F1=R25,R18,R19)","v":"Vervaldatum"},null,{"$f":"IF(F1=R25,G10+VLOOKUP(G12,klantenlijst,7,0),data!L8)","v":"2019-01-31"},null,null,null,null,null,null,"Stap 3"]
[null,null,null,null,{"$f":"IF(F1=R25,\"\",\"Nieuwe betaaldatum\")","v":""},null,{"$f":"IF(F1=R25,\"\",G13+15)","v":""}]
[]
[]
[]
["HOEVEELHEID","BESCHRIJVING",null,null,"PRIJS PER EENHEID","BTW-Tarief",{"$f":"IF(O22=R29,\"Korting %\",\"Commissie %\")","v":"Korting %"},{"$f":"IF(O22=R29,\"Korting bedrag\",\"Commissie bedrag\")","v":"Korting bedrag"},null,"Totaal bedrag excl.",null,null,null,"Keuze menu",null,null,null,"Vervaldatum"]
[10,null,null,null,15,"21%",0.05,{"$f":"IF(G19>0%,J19*G19,\"\")","v":7.5},{"$f":"IF(G19>0%,J19-H19,\"\")","v":142.5},{"$f":"IF(A19=\"\",\"\",A19*E19)","v":150},null,null,null,"Factuurdatum","2019-01-01",null,null,"Org. Vervaldatum"]
[5,null,null,null,10,"9%",null,{"$f":"IF(G20>0%,J20*G20,\"\")","v":""},{"$f":"IF(G20>0%,J20-H20,\"\")","v":""},{"$f":"IF(A20=\"\",\"\",A20*E20)","v":50},null,null,null,"Factuurnummer",20190012]
[2,null,null,null,5,"9%",null,{"$f":"IF(G21>0%,J21*G21,\"\")","v":""},{"$f":"IF(G21>0%,J21-H21,\"\")","v":""},{"$f":"IF(A21=\"\",\"\",A21*E21)","v":10},null,null,null,"Debiteurnummer",2]
[2,null,null,null,10,"0%",null,{"$f":"IF(G22>0%,J22*G22,\"\")","v":""},{"$f":"IF(G22>0%,J22-H22,\"\")","v":""},20,null,null,null,"Korting/ Commissie","KORTING",null,"Omzet NL"]
[null,null,null,null,null,null,null,"","",{"$f":"IF(A23=\"\",\"\",A23*E23)","v":""},null,null,null,"Soort factuur","Factuur",null,"Omzet EU"]
[null,null,null,null,null,null,null,"","","",null,null,null,"Aanmaningskosten",17.5,null,"Omzet buiten EU"]
[null,null,null,null,null,null,null,"","","",null,null,null,"Soort Omzet",{"$f":"VLOOKUP(G12,klantenlijst,8,0)","v":"Omzet NL"},null,null,"Factuur"]
[null,null,null,null,null,null,null,"","","",null,null,null,null,null,null,null,"Herinnering"]
[null,null,null,null,null,null,null,"","","",null,null,null,"Lijst met gegevens",null,null,null,"Aanmaning"]
[null,null,null,null,null,null,null,"","","",null,null,null,"BTW-tarief",{"$f":"IF(O22=R29,R29,R30)","v":"KORTING"}]
[null,null,null,null,null,null,null,null,null,null,null,null,null,{"$f":"IF(O25=\"omzet NL\",\"21%\",\"\")","v":"21%"},0.05,null,null,"KORTING"]
[{"$f":"IF(F1=R25,\"\",\"Opmerking\")","v":""},null,null,null,null,null,"SUBTOTAAL",null,{"$f":"SUM(J19:J29)","v":230},null,null,null,null,{"$f":"IF(O25=\"omzet NL\",\"9%\",\"\")","v":"9%"},0.15,null,null,"COMMISSIE"]
[{"$f":"IF(F1=R25,\"\",IF(F1=R26,#REF!,#REF!))","v":""},null,null,null,null,null,{"$f":"IF(O22=R29,R29,R30)","v":"KORTING"},null,{"$f":"SUM(H19:H29)","v":7.5},null,null,null,null,{"$f":"_xlfn.IFS(O25=\"omzet eu\",\"\",O25=\"omzet nl\",\"0%\",O25=\"omzet buiten eu\",\"0%\")","v":{"$error":"#NAME?"}},0.2]
[{"$f":"IF(F1=R25,\"\",IF(F1=R26,#REF!,#REF!))","v":""},null,null,null,null,null,"BTW VERLEGD",null,{"$f":"SUMIF(F18:F28,\"=BTW VERLEGD\",J18:J28)-SUMIF(F18:F28,\"=BTW VERLEGD\",H18:H28)","v":0},{"$f":"IF(I32>0,0,\"\")","v":""},null,null,null,{"$f":"_xlfn.IFS(O25=\"omzet eu\",\"BTW VERLEGD\",O25=\"omzet nl\",\"BTW VERLEGD\",O25=\"omzet buiten eu\",\"\")","v":{"$error":"#NAME?"}},0.3]
[null,null,null,null,null,null,"0% BTW",null,{"$f":"SUMIF(F19:F29,\"=0%\",J19:J29)","v":20},{"$f":"IF(I33>0,0,\"\")","v":0},null,null,null,"Kopieerbalk","datum","soort","factuurnummer","klant","totaal excl. BTW",0,"btw 0%",0.06,"btw 6 %",0.21,"btw 21%","totaal","omzet","Vervaldatum","betaald"]
[null,null,null,null,null,null,"9% BTW",null,{"$f":"SUMIF(F19:F29,\"=9%\",J19:J29)-SUMIF(F19:F29,\"=9%\",H19:H29)","v":60},{"$f":"I34*0.09","v":5.3999999999999995},null,null,null,"1 Kopieer deze balk ",{"$f":"O19","v":"2019-01-01"},{"$f":"O23","v":"Factuur"},{"$f":"O20","v":20190012},{"$f":"B10","v":"H.G. Alberts"},{"$f":"T34","v":20},{"$f":"IF(I32>0,I32,I33)","v":20},null,{"$f":"I34","v":60},null,{"$f":"I35","v":142.5},null,null,{"$f":"VLOOKUP(G12,klantenlijst,8,0)","v":"Omzet NL"},{"$f":"G13","v":"2019-01-31"},"Openstaand"]
[null,null,null,null,null,null,"21% BTW ",null,{"$f":"SUMIF(F19:F29,\"=21%\",J19:J29)-SUMIF(F19:F29,\"=21%\",H19:H29)","v":142.5},{"$f":"I35*0.21","v":29.924999999999997},null,null,null,"2 Plak deze in Verkoop (gebruik rechtermuisknop Plakken Speciaal, Waarden)"]
[null,null,null,null,null,null,"TOTAAL",null,{"$f":"I30-I31+J33+J35+J34","v":257.82499999999999}]
[]
[]
[{"$f":"IF(#REF!<#REF!,#REF!,\"\")","v":{"$error":"#REF!"}}]
[{"$f":"#REF!","v":{"$error":"#REF!"}}]
[{"$f":"IF(#REF!<#REF!,#REF!&\"  | \"&#REF!&\" | \"&#REF!&\"\",\"\")","v":{"$error":"#REF!"}}]
[{"$f":"IF(#REF!<#REF!,#REF!&\" \"&#REF!&\" | \"&#REF!&\" \"&#REF!&\" | \"&#REF!&\" \"&#REF!&\" | \"&#REF!&\" \"&#REF!&\"  \",\"\")","v":{"$error":"#REF!"}}]
[{"$f":"IF(#REF!<#REF!,#REF!,\"\")","v":{"$error":"#REF!"}}]
[{"$f":"IF(#REF!<#REF!,#REF!,\"\")","v":{"$error":"#REF!"}}]

{"sheet":"data","index":3,"n_rows":25,"n_cols":14,"rows_kept":25,"cut":false,"hidden":true,"merged":[[24,3,24,17],[13,3,13,37],[14,3,14,34]]}
[]
[]
[]
[null,null,"factuurinstelling"]
[null,null,1,"Factuurtekst","tekst1","waarde1","tekst2","waarde2","tekst4","waarde4","tekst5","waarde5","tekst6","waarde6"]
[null,null,1,"FACTUUR","DATUM:",{"$f":"Verkoopfactuur!O19","v":"2019-01-01"},"FACTUURNR.:",{"$f":"Verkoopfactuur!O20","v":20190012},"DEBITEUR NR. :",{"$f":"Verkoopfactuur!O21","v":2},"VERVALDATUM:",{"$f":"F6+VLOOKUP(J6,klantenlijst,7)","v":"2019-01-31"},{"$f":"\"\"","v":""},{"$f":"\"\"","v":""}]
[null,null,2,"KOPIE-FACTUUR","DATUM:",{"$f":"Verkoopfactuur!O19","v":"2019-01-01"},"FACTUURNR.:",{"$f":"Verkoopfactuur!O20","v":20190012},"DEBITEUR NR. :",{"$f":"Verkoopfactuur!O21","v":2},"VERVALDATUM:",{"$f":"F7+VLOOKUP(J7,klantenlijst,7)","v":"2019-01-31"},{"$f":"\"\"","v":""},{"$f":"\"\"","v":""}]
[null,null,3,"HERINNERING","DATUM:",{"$f":"Verkoopfactuur!O19","v":"2019-01-01"},"FACTUURNR.:",{"$f":"Verkoopfactuur!O20","v":20190012},"DEBITEUR NR. :",{"$f":"Verkoopfactuur!O21","v":2},"ORG. VERVALDATUM:",{"$f":"F8+VLOOKUP(J8,klantenlijst,7)","v":"2019-01-31"},"ORG. FACT. DATUM:",{"$f":"Verkoopfactuur!O19","v":"2019-01-01"}]
[null,null,4,"AANMANING","DATUM:",{"$f":"Verkoopfactuur!O19","v":"2019-01-01"},"FACTUURNR.:",{"$f":"Verkoopfactuur!O20","v":20190012},"DEBITEUR NR. :",{"$f":"Verkoopfactuur!O21","v":2},"ORG. VERVALDATUM:",{"$f":"F9+VLOOKUP(J9,klantenlijst,7)","v":"2019-01-31"},"ORG. FACT. DATUM:",{"$f":"Verkoopfactuur!O19","v":"2019-01-01"}]
[]
[null,null,"factuurtekst",null," "," "," "," "," "," "," "," "," "," "]
[null,null,1,"U wordt verzocht het factuurbedrag bedrag binnen 0 dagen over te maken op Knab rekening nummer NL 91 KNAB 0256 4060 30 t.n.v. AVE Hulsberg o.v.v. factuurnummer 2018001."]
[null,null,2,"U wordt verzocht het factuurbedrag bedrag binnen 0 dagen over te maken op Knab rekening nummer NL 91 KNAB 0256 4060 30 t.n.v. AVE Hulsberg o.v.v. factuurnummer 2018001. "]
[null,null,3,{"$f":"\"U wordt verzocht het factuurbedrag bedrag binnen \"&L8-N8&\" dagen over te maken op \"&#REF!&\" rekening nummer \"&#REF!&\" t.n.v. \"&#REF!&\" \"&#REF!&\" o.v.v. factuurnummer \"&Verkoopfactuur!G11&\".Indien u niet binnen deze termijn betaald, zal er € 17,50 administratiekosten in rekening worden gebracht. \"","v":{"$error":"#REF!"}}]
[null,null,4,{"$f":"\"U wordt verzocht het factuurbedrag bedrag binnen \"&L8-N8&\" dagen over te maken op \"&#REF!&\" rekening nummer \"&#REF!&\" t.n.v. \"&#REF!&\" \"&#REF!&\" o.v.v. factuurnummer \"&Verkoopfactuur!G11&\". \"&#REF!&\" \"","v":{"$error":"#REF!"}}]
[]
[null,null,"factuurtitel"]
[]
[null,null,{"$f":"VLOOKUP(factuurtypen,factuurgegevens,2)&\" \"&VLOOKUP(factuurtypen,factuurgegevens,6)","v":"FACTUUR 20190012"}]
[]
[null,null,{"$f":"VLOOKUP(factuurtype,factuurinstelling,2)&\" \"&VLOOKUP(factuurtype,factuurinstelling,6)","v":{"$error":"#N/A"}}]
[]
[]
[null,null,"factuurtekst"]
[null,null,1,"U wordt verzocht het vermelde bedrag binnen 30 dagen over te maken op  bankrekeningnummer NL80INGB00006051477, onder vermelding van het factuurnummer."]